Workbook

Sheet 1. Information Sheet
N12: 1.3
F26: 2017-05-01
F30: 2015
F32: 2010

Sheet Sheet1 (hidden)

Sheet 2. Current Tariff Schedule
AZ1: TRUE
J12: 9
P14: 2016-05-01
E33: 16.57707
E34: 0.79 | Q34: 2018-10-31
E35: -0.11 | Q35: 2017-04-30
E36: 0.0116223
E37: 0.001
E38: -0.0023 | Q38: 2017-04-30
E39: 0.0066 | Q39: 2018-04-30
E40: 0.0052
E41: 0.0034
E45: 0.0036
E46: 0.0013
E47: 0.0011
E48: 0.25
E63: -30
E67: -34
E71: -38
E75: -42
E79: -45
E84: -50
E88: -55
E92: -60
E96: -75
E112: 34.530465
E113: 0.79 | Q113: 2018-10-31
E114: 0.0118262
E115: 0.001
E116: -0.0023 | Q116: 2017-04-30
E117: 0.0066 | Q117: 2018-04-30
E118: -0.0001 | Q118: 2017-04-30
E119: 0.0045
E120: 0.0032
E124: 0.0036
E125: 0.0013
E126: 0.0011
E127: 0.25
E143: 228.69424
E144: 2.1721467
E145: 0.3506
E146: -0.8646 | Q146: 2017-04-30
E147: 2.5358 | Q147: 2018-04-30
E148: -0.0191 | Q148: 2017-04-30
E149: 1.8436
E150: 1.2765
E151: 2.271
E152: 1.4154
E156: 0.0036
E157: 0.0013
E158: 0.0011
E159: 0.25
E175: 1502.43715
E176: 1.3932487
E177: 0.4094
E181: 0.0036
E182: 0.0013
E183: 0.0011
E184: 0.25
E200: 9.369205
E201: 0.0291577
E202: 0.001
E203: -0.0023 | Q203: 2017-04-30
E204: 0.0066 | Q204: 2018-04-30
E205: -0.0002 | Q205: 2017-04-30
E206: 0.0045
E207: 0.0032
E211: 0.0036
E212: 0.0013
E213: 0.0011
E214: 0.25
E230: 3.354155
E231: 9.62377415
E232: 0.2816
E233: -0.8109 | Q233: 2017-04-30
E234: 2.3785 | Q234: 2018-04-30
E235: -0.0481 | Q235: 2017-04-30
E236: 1.4193
E237: 0.9731
E241: 0.0036
E242: 0.0013
E243: 0.0011
E244: 0.25
E260: 3.24201
E261: 8.7868666
E262: 0.2798
E263: -0.7462 | Q263: 2017-04-30
E264: 2.1886 | Q264: 2018-04-30
E265: -0.0001 | Q265: 2017-04-30
E266: 1.3995
E267: 0.9668
E271: 0.0036
E272: 0.0013
E273: 0.0011
E274: 0.25
E290: 5.4
E293: -0.6
E294: -1
E306: 15
E307: 15
E308: 15
E309: 15
E310: 15
E311: 15
E312: 15
E313: 15
E314: 15
E315: 30
E316: 30
E317: 30
E320: 1.5
E321: 19.56
E322: 30
E323: 165
E324: 65
E325: 185
E326: 185
E327: 415
E328: 65
E329: 185
E332: 30
E333: 165
E334: 500
E335: 300
E336: 1000
E337: 22.35
E354: 100
E355: 20
E356: 0.5
E357: 0.3
E358: -0.3
E360: 0.25
E361: 0.5
E366: 2
E371: 1.0602
E372: 1.0496

Sheet 3. Continuity Schedule
CA1: TRUE
C2: FALSE | CA2: FALSE
CA3: TRUE
CA4: TRUE
CA5: FALSE
CA6: FALSE
CA7: FALSE
CA8: TRUE
CA9: FALSE
CA10: TRUE
CA11: TRUE
E16: 2010 | O16: 2011 | Y16: 2012 | AI16: 2013 | AS16: 2014 | BC16: 2015 | BM16: 2016
D21: 1550 | E21: 30671.53 | F21: 52702.53 | G21: 103328 | I21: =E21+F21-G21+H21 -> -19953.94 | J21: 6492.13 | K21: -423.97 | L21: 6408 | N21: =J21+K21-L21+M21 -> -339.84 | O21: =I21 -> -19953.94 | P21: 355109 | S21: =O21+P21-Q21+SUM(R21:R21) -> 335155.06 | T21: =N21 -> -339.84 | U21: 320 | X21: =T21+U21-V21+W21 -> -19.84 | Y21: =S21 -> 335155.06 | Z21: 373036 | AA21: -18134 | AC21: =Y21+Z21-AA21+SUM(AB21:AB21) -> 726325.06 | AD21: =X21 -> -19.84 | AE21: 6737 | AF21: -2515 | AH21: =AD21+AE21-AF21+AG21 -> 9232.16 | AI21: =AC21 -> 726325.06 | AJ21: 609899 | AM21: =AI21+AJ21-AK21+SUM(AL21:AL21) -> 1336224.06 | AN21: =AH21 -> 9232.16 | AO21: 13711 | AR21: =AN21+AO21-AP21+AQ21 -> 22943.16 | AS21: =AM21 -> 1336224.06 | AT21: 519336.15 | AU21: 708191 | AW21: =AS21+AT21-AU21+SUM(AV21:AV21) -> 1147369.21 | AX21: =AR21 -> 22943.16 | AY21: 23096.85 | AZ21: 19695 | BB21: =AX21+AY21-AZ21+BA21 -> 26345.01 | BC21: =AW21 -> 1147369.21 | BD21: 998521.84 | BE21: 628034 | BG21: =BC21+BD21-BE21+SUM(BF21:BF21) -> 1517857.05 | BH21: =BB21 -> 26345.01 | BI21: 14001.59 | BJ21: 15557 | BL21: =BH21+BI21-BJ21+BK21 -> 24789.6 | BO21: =BG21-BM21 -> 1517857.05 | BP21: =BL21-BN21 -> 24789.6 | BS21: =BP21+BQ21+BR21 -> 24789.6 | BT21: =SUM(BO21:BR21) -> 1542646.65 | BU21: 1542648 | BV21: =BU21-SUM(BG21,BL21) -> 1.35
D22: 1551 | I22: =E22+F22-G22+H22 -> 0 | N22: =J22+K22-L22+M22 -> 0 | O22: =I22 -> 0 | S22: 0 | T22: 0 | X22: =T22+U22-V22+W22 -> 0 | Y22: 0 | AC22: =Y22+Z22-AA22+SUM(AB22:AB22) -> 0 | AD22: =X22 -> 0 | AH22: =AD22+AE22-AF22+AG22 -> 0 | AI22: 0 | AJ22: 46737 | AM22: 46737 | AN22: 0 | AR22: =AN22+AO22-AP22+AQ22 -> 0 | AS22: 46737 | AT22: -6483.98 | AW22: 40253.02 | AX22: 0 | BB22: =AX22+AY22-AZ22+BA22 -> 0 | BC22: 40253.02 | BD22: -2945.77 | BE22: 46736.57 | BG22: -9429.32 | BH22: 0 | BI22: 518.43 | BJ22: 916 | BL22: =BH22+BI22-BJ22+BK22 -> -397.57 | BO22: =BG22-BM22 -> -9429.32 | BP22: =BL22-BN22 -> -397.57 | BS22: =BP22+BQ22+BR22 -> -397.57 | BT22: =SUM(BO22:BR22) -> -9826.89 | BU22: -9827 | BV22: =BU22-SUM(BG22,BL22) -> -0.11
D23: 1580 | E23: -3021633.58 | F23: -680670.48 | G23: -2755150 | I23: =E23+F23-G23+H23 -> -947154.06 | J23: -290800.53 | K23: -17350.32 | L23: -279260 | N23: =J23+K23-L23+M23 -> -28890.85 | O23: =I23 -> -947154.06 | P23: -1042317 | S23: -1989471.06 | T23: -28890.85 | U23: -14343 | X23: =T23+U23-V23+W23 -> -43233.85 | Y23: -1989471.06 | Z23: -1584483 | AA23: -995694 | AC23: =Y23+Z23-AA23+SUM(AB23:AB23) -> -2578260.06 | AD23: -43233.85 | AE23: -38275 | AF23: -2594 | AH23: =AD23+AE23-AF23+AG23 -> -78914.85 | AI23: -2578260.06 | AJ23: -800162 | AM23: -3378422.06 | AN23: -78914.85 | AO23: -32495 | AR23: =AN23+AO23-AP23+AQ23 -> -111409.85 | AS23: -3378422.06 | AT23: -812441.68 | AU23: -3573954 | AW23: -616909.74 | AX23: -111409.85 | AY23: -68099.7 | AZ23: -147000 | BB23: =AX23+AY23-AZ23+BA23 -> -32509.55 | BC23: -616909.74 | BD23: -1047927.88 | BE23: 195532 | BG23: -1860369.62 | BH23: -32509.55 | BI23: -12803.69 | BJ23: 39422 | BL23: =BH23+BI23-BJ23+BK23 -> -84735.24 | BO23: -1860369.62 | BP23: -84735.24 | BS23: -84735.24 | BT23: =SUM(BO23:BR23) -> -1945104.86 | BU23: -1945105 | BV23: =BU23-SUM(BG23,BL23) -> -0.1399999999
D24: 1580 | I24: 0 | N24: 0 | O24: 0 | S24: 0 | T24: 0 | X24: 0 | Y24: 0 | AC24: 0 | AD24: 0 | AH24: 0 | AI24: 0 | AM24: 0 | AN24: 0 | AR24: 0 | AS24: 0 | AW24: 0 | AX24: 0 | BB24: 0 | BC24: 0 | BG24: =BC24+BD24-BE24+SUM(BF24:BF24) -> 0 | BH24: 0 | BL24: 0 | BO24: 0 | BP24: 0 | BS24: 0 | BT24: =IF(CA5=TRUE, 0, 0) -> 0 | BU24: 0 | BV24: =BU24-SUM(BG24,BL24) -> 0
D25: 1580 | I25: 0 | N25: 0 | O25: 0 | S25: 0 | T25: 0 | X25: 0 | Y25: 0 | AC25: 0 | AD25: 0 | AH25: 0 | AI25: 0 | AM25: 0 | AN25: 0 | AR25: 0 | AS25: 0 | AW25: 0 | AX25: 0 | BB25: 0 | BC25: 0 | BG25: 0 | BH25: 0 | BL25: 0 | BO25: 0 | BP25: 0 | BS25: 0 | BT25: =IF(CA6=TRUE, SUM(BO25:BR25), 0) -> 0 | BU25: 0 | BV25: =BU25-SUM(BG25,BL25) -> 0
D26: 1584 | E26: -298125.13 | F26: 327483.69 | G26: -1133600 | I26: 1162958.56 | J26: -116253.62 | K26: 4283.45 | L26: -114880 | N26: 2909.83 | O26: 1162958.56 | P26: -167078 | S26: 995880.56 | T26: 2909.83 | U26: 12936 | X26: 15845.83 | Y26: 995880.56 | Z26: -648746 | AA26: 1142986 | AC26: -795851.44 | AD26: 15845.83 | AE26: 9476 | AF26: 45254 | AH26: -19932.17 | AI26: -795851.44 | AJ26: -186687 | AM26: -982538.44 | AN26: -19932.17 | AO26: 2049 | AR26: -17883.17 | AS26: -982538.44 | AT26: -550710.67 | AU26: 347134 | AW26: -1880383.11 | AX26: -17883.17 | AY26: -3332.06 | AZ26: 31682 | BB26: -52897.23 | BC26: -1880383.11 | BD26: -427796.61 | BE26: -1329672 | BG26: -978507.72 | BH26: -52897.23 | BI26: -16916.59 | BJ26: -75627 | BL26: 5813.18 | BO26: -978507.72 | BP26: 5813.18 | BS26: 5813.18 | BT26: =SUM(BO26:BR26) -> -972694.54 | BU26: -972696 | BV26: =BU26-SUM(BG26,BL26) -> -1.46
D27: 1586 | E27: -774334.06 | F27: =-315334.63 -> -315334.63 | G27: -762746 | I27: -326922.69 | J27: -49434.95 | K27: -3137.59 | L27: -52272 | N27: -300.54 | O27: -326922.69 | P27: -555670 | S27: -882592.69 | T27: -300.54 | U27: -5490 | X27: -5790.54 | Y27: -882592.69 | Z27: -384485 | AA27: -340358 | AC27: -926719.69 | AD27: -5790.54 | AE27: -16490 | AF27: 6473 | AH27: -28753.54 | AI27: -926719.69 | AJ27: -1336055 | AM27: -2262774.69 | AN27: -28753.54 | AO27: -25472 | AR27: -54225.54 | AS27: -2262774.69 | AT27: -459984.99 | AU27: -1267076 | AW27: -1455683.68 | AX27: -54225.54 | AY27: -38572.68 | AZ27: -45501 | BB27: -47297.22 | BC27: -1455683.68 | BD27: 330581.88 | BE27: -995698 | BG27: -129403.8 | BH27: -47297.22 | BI27: -10106.59 | BJ27: -28242 | BL27: -29161.81 | BO27: -129403.8 | BP27: -29161.81 | BS27: -29161.81 | BT27: =SUM(BO27:BR27) -> -158565.61 | BU27: -158565 | BV27: 0.6099999998
D28: 1588 | E28: 4993034.14 | F28: -140382.1 | G28: 3176708 | I28: 1675944.04 | J28: 535654.46 | K28: -924.98 | L28: 538107 | N28: -3377.52 | O28: 1675944.04 | P28: 3070788 | S28: 4746732.04 | T28: -3377.52 | U28: -65083 | X28: -68460.52 | Y28: 4746732.04 | Z28: 4757761 | AA28: 1710789 | AC28: 7793704.04 | AD28: -68460.52 | AE28: -57449 | AF28: -70318 | AH28: -55591.52 | AI28: 7793704.04 | AJ28: 6331346 | AL28: -6419261 | AM28: 7705789.04 | AN28: -55591.52 | AO28: -161736 | AR28: -217327.52 | AS28: 7705789.04 | AT28: 984736.39 | AU28: 9554493 | AW28: -863967.57 | AX28: -217327.52 | AY28: =271537.89-18652 -> 252885.89 | AZ28: 49174 | BB28: -13615.63 | BC28: -863967.57 | BD28: -1719978.99 | BE28: -1848703.86 | BG28: -735242.7 | BH28: -13615.63 | BI28: 1664.76 | BJ28: -302737 | BL28: 290786.13 | BO28: -735242.7 | BP28: 290786.13 | BS28: 290786.13 | BT28: =SUM(BO28:BR28) -> -444456.57 | BU28: -444455 | BV28: 1.57
D29: 1589 | E29: -2792292.69 | F29: -767869.14 | G29: -312106 | I29: -3248055.83 | J29: 0 | K29: 467.69 | N29: 467.69 | O29: -3248055.83 | P29: -2047537 | S29: -5295592.83 | T29: 467.69 | U29: 39173 | X29: 39640.69 | Y29: -5295592.83 | Z29: -3436249 | AA29: -3248056 | AC29: -5483785.83 | AD29: 39640.69 | AE29: 65794 | AF29: -62091 | AH29: 167525.69 | AI29: -5483785.83 | AJ29: -5767265 | AL29: 6419261 | AM29: -4831789.83 | AN29: 167525.69 | AO29: 184331 | AR29: 351856.69 | AS29: -4831789.83 | AT29: -443609.21 | AU29: -8731842 | AW29: 3456442.96 | AX29: 351856.69 | AY29: -235142.61 | AZ29: -54573 | BB29: 171287.08 | BC29: 3456442.96 | BD29: -6883.5 | BE29: 3900052.12 | BG29: -450492.66 | BH29: 171287.08 | BI29: 18957.5 | BJ29: 482871 | BL29: -292626.42 | BO29: -450492.66 | BP29: -292626.42 | BS29: -292626.42 | BT29: =SUM(BO29:BR29) -> -743119.08 | BU29: -743120 | BV29: -0.9199999999
D30: 1595 | I30: 0 | N30: 0 | O30: 0 | S30: 0 | T30: 0 | X30: 0 | Y30: 0 | AC30: 0 | AD30: 0 | AH30: 0 | AI30: 0 | AM30: 0 | AN30: 0 | AR30: 0 | AS30: 0 | AW30: 0 | AX30: 0 | BB30: 0 | BC30: 0 | BG30: 0 | BH30: 0 | BL30: 0 | BO30: 0 | BP30: 0 | BS30: 0 | BT30: =IF(CA7=TRUE, SUM(BO30:BR30), 0) -> 0 | BU30: 0 | BV30: 0
D31: 1595 | I31: 0 | N31: 0 | O31: 0 | S31: 0 | T31: 0 | X31: 0 | Y31: 0 | AC31: 0 | AD31: 0 | AH31: 0 | AI31: 0 | AM31: 0 | AN31: 0 | AR31: 0 | AS31: 0 | AT31: =-185412.2 -> -185412.2 | AW31: -185412.2 | AX31: 0 | AY31: -3283 | BA31: =-53701 -> -53701 | BB31: -56984 | BC31: -185412.2 | BG31: -185412.2 | BH31: -56984 | BI31: -2070.64 | BL31: -59054.64 | BO31: -185412.2 | BP31: -59054.64 | BS31: -59054.64 | BT31: =IF(CA8=TRUE, SUM(BO31:BR31), 0) -> -244466.84 | BU31: -244467 | BV31: -0.16
D32: 1595 | I32: 0 | N32: 0 | O32: 0 | S32: =O32+P32-Q32+SUM(R32:R32) -> 0 | T32: 0 | X32: 0 | Y32: 0 | AC32: =Y32+Z32-AA32+SUM(AB32:AB32) -> 0 | AD32: =X32 -> 0 | AH32: 0 | AI32: 0 | AM32: 0 | AN32: 0 | AR32: 0 | AS32: 0 | AW32: 0 | AX32: 0 | BB32: 0 | BC32: 0 | BG32: 0 | BH32: 0 | BL32: 0 | BO32: 0 | BP32: 0 | BS32: 0 | BT32: =IF(CA9=TRUE, SUM(BO32:BR32), 0) -> 0 | BU32: 0 | BV32: 0
D33: 1595 | I33: 0 | N33: 0 | O33: 0 | S33: =O33+P33-Q33+SUM(R33:R33) -> 0 | T33: 0 | X33: 0 | Y33: 0 | AC33: =Y33+Z33-AA33+SUM(AB33:AB33) -> 0 | AD33: =X33 -> 0 | AH33: 0 | AI33: 0 | AJ33: -209381 | AM33: -209381 | AN33: 0 | AO33: -48626 | AQ33: 69076 | AR33: 20450 | AS33: -209381 | AW33: -209381 | AX33: 20450 | AY33: -68821 | BB33: -48371 | BC33: -209381 | BE33: -209381 | BG33: 0 | BH33: -48371 | BI33: -796.13 | BJ33: 20450 | BL33: -69617.13 | BO33: 0 | BP33: -69617.13 | BS33: -69617.13 | BT33: =IF(CA1=TRUE, SUM(BO33:BR33), 0) -> -69617.13 | BU33: -69617 | BV33: 0.13
D34: 1595 | I34: 0 | N34: 0 | O34: 0 | S34: =O34+P34-Q34+SUM(R34:R34) -> 0 | T34: 0 | X34: 0 | Y34: 0 | AC34: =Y34+Z34-AA34+SUM(AB34:AB34) -> 0 | AD34: =X34 -> 0 | AH34: 0 | AI34: 0 | AM34: 0 | AN34: 0 | AR34: 0 | AS34: 0 | AW34: 0 | AX34: 0 | BB34: 0 | BC34: 0 | BG34: 0 | BH34: 0 | BL34: 0 | BO34: 0 | BP34: 0 | BS34: 0 | BT34: =IF(CA2=TRUE, SUM(BO34:BR34), 0) -> 0 | BU34: 0 | BV34: 0
D35: 1595 | I35: 0 | N35: 0 | O35: 0 | S35: =O35+P35-Q35+SUM(R35:R35) -> 0 | T35: 0 | X35: 0 | Y35: 0 | AC35: =Y35+Z35-AA35+SUM(AB35:AB35) -> 0 | AD35: =X35 -> 0 | AH35: 0 | AI35: 0 | AM35: 0 | AN35: 0 | AR35: 0 | AS35: 0 | AT35: 1717198.663 | AU35: =2963054+146523 -> 3109577 | AW35: -1392378.337 | AX35: 0 | AY35: -19767.95 | BB35: -19767.95 | BC35: -1392378.337 | BD35: 1947528.36 | BG35: 555150.023 | BH35: -19767.95 | BI35: -2698.16 | BL35: -22466.11 | BO35: 555150.023 | BP35: -22466.11 | BS35: -22466.11 | BT35: =IF(CA3=TRUE, SUM(BO35:BR35), 0) -> 532683.913 | BU35: 532684 | BV35: 0.08699999994
D36: 1595 | I36: 0 | N36: 0 | O36: 0 | S36: =O36+P36-Q36+SUM(R36:R36) -> 0 | T36: 0 | X36: 0 | Y36: 0 | AC36: =Y36+Z36-AA36+SUM(AB36:AB36) -> 0 | AD36: =X36 -> 0 | AH36: 0 | AI36: 0 | AM36: 0 | AN36: 0 | AR36: 0 | AS36: 0 | AW36: 0 | AX36: 0 | BB36: 0 | BC36: 0 | BD36: 2317931.83 | BE36: 970836.65 | BG36: 1347095.18 | BH36: 0 | BI36: -406.85 | BL36: -406.85 | BO36: 1347095.18 | BP36: -406.85 | BS36: -406.85 | BT36: =IF(CA4=TRUE, SUM(BO36:BR36), 0) -> 1346688.33 | BU36: 1346688 | BV36: -0.3300000001
C38: =C29 -> RSVA - Global Adjustment | D38: 1589 | E38: =E29 -> -2792292.69 | F38: -767869.14 | G38: -312106 | H38: 0 | I38: -3248055.83 | J38: 0 | K38: 467.69 | L38: 0 | M38: 0 | N38: 467.69 | O38: -3248055.83 | P38: -2047537 | Q38: 0 | R38: 0 | S38: -5295592.83 | T38: 467.69 | U38: 39173 | V38: 0 | W38: 0 | X38: 39640.69 | Y38: -5295592.83 | Z38: -3436249 | AA38: -3248056 | AB38: 0 | AC38: -5483785.83 | AD38: 39640.69 | AE38: 65794 | AF38: -62091 | AG38: 0 | AH38: 167525.69 | AI38: -5483785.83 | AJ38: -5767265 | AK38: 0 | AL38: 6419261 | AM38: -4831789.83 | AN38: 167525.69 | AO38: 184331 | AP38: 0 | AQ38: 0 | AR38: 351856.69 | AS38: -4831789.83 | AT38: -443609.21 | AU38: -8731842 | AV38: 0 | AW38: 3456442.96 | AX38: 351856.69 | AY38: -235142.61 | AZ38: -54573 | BA38: 0 | BB38: 171287.08 | BC38: 3456442.96 | BD38: -6883.5 | BE38: 3900052.12 | BF38: 0 | BG38: -450492.66 | BH38: 171287.08 | BI38: 18957.5 | BJ38: 482871 | BK38: 0 | BL38: -292626.42 | BM38: 0 | BN38: 0 | BO38: -450492.66 | BP38: -292626.42 | BQ38: =BQ29 -> 0 | BR38: =BR29 -> 0 | BS38: =BS29 -> -292626.42 | BT38: =BT29 -> -743119.08 | BU38: =BU29 -> -743120 | BV38: =BU38-SUM(BG38,BL38) -> -0.9199999999
E39: =SUM(E21:E36)-E29 -> 929612.9 | F39: =SUM(F21:F36)-F29 -> -756200.99 | G39: =SUM(G21:G36)-G29 -> -1371460 | H39: =SUM(H21:H36)-H29 -> 0 | I39: 1544871.91 | J39: 85657.49 | K39: -17553.41 | L39: 98103 | M39: 0 | N39: =SUM(N21:N36)-N29 -> -29998.92 | O39: 1544871.91 | P39: 1660832 | Q39: 0 | R39: 0 | S39: 3205703.91 | T39: -29998.92 | U39: -71660 | V39: 0 | W39: 0 | X39: -101658.92 | Y39: 3205703.91 | Z39: 2513083 | AA39: 1499589 | AB39: 0 | AC39: 4219197.91 | AD39: -101658.92 | AE39: -96001 | AF39: -23700 | AG39: 0 | AH39: -173959.92 | AI39: 4219197.91 | AJ39: 4455697 | AK39: =SUM(AK21:AK36)-AK29 -> 0 | AL39: -6419261 | AM39: 2255633.91 | AN39: -173959.92 | AO39: -252569 | AP39: 0 | AQ39: 69076 | AR39: -357452.92 | AS39: 2255633.91 | AT39: 1206237.683 | AU39: 8878365 | AV39: 0 | AW39: -5416493.407 | AX39: -357452.92 | AY39: 74106.35 | AZ39: -91950 | BA39: -53701 | BB39: -245097.57 | BC39: -5416493.407 | BD39: 2395914.66 | BE39: -2542315.64 | BF39: 0 | BG39: -478263.107 | BH39: -245097.57 | BI39: -29613.87 | BJ39: -330261 | BK39: 0 | BL39: 55549.56 | BM39: 0 | BN39: 0 | BO39: -478263.107 | BP39: 55549.56 | BQ39: 0 | BR39: 0 | BS39: =SUM(BS21:BS36)-BS29 -> 55549.56 | BT39: =SUM(BT21:BT36)-BT29 -> -422713.547 | BU39: =SUM(BU21:BU36)-BU29-BU24-BU25 -> -422712 | BV39: =BU39-SUM(BG39,BL39) -> 1.547
E40: =SUM(E38,E39) -> -1862679.79 | F40: =SUM(F38,F39) -> -1524070.13 | G40: -1683566 | H40: 0 | I40: -1703183.92 | J40: 85657.49 | K40: -17085.72 | L40: 98103 | M40: 0 | N40: -29531.23 | O40: -1703183.92 | P40: =SUM(P38,P39) -> -386705 | Q40: =SUM(Q38,Q39) -> 0 | R40: 0 | S40: -2089888.92 | T40: -29531.23 | U40: -32487 | V40: 0 | W40: 0 | X40: -62018.23 | Y40: -2089888.92 | Z40: -923166 | AA40: -1748467 | AB40: 0 | AC40: -1264587.92 | AD40: -62018.23 | AE40: -30207 | AF40: -85791 | AG40: 0 | AH40: -6434.23 | AI40: -1264587.92 | AJ40: -1311568 | AK40: 0 | AL40: 0 | AM40: -2576155.92 | AN40: -6434.23 | AO40: -68238 | AP40: 0 | AQ40: 69076 | AR40: -5596.23 | AS40: -2576155.92 | AT40: 762628.473 | AU40: 146523 | AV40: 0 | AW40: -1960050.447 | AX40: -5596.23 | AY40: -161036.26 | AZ40: -146523 | BA40: -53701 | BB40: -73810.49 | BC40: -1960050.447 | BD40: 2389031.16 | BE40: 1357736.48 | BF40: 0 | BG40: -928755.767 | BH40: -73810.49 | BI40: -10656.37 | BJ40: 152610 | BK40: 0 | BL40: -237076.86 | BM40: 0 | BN40: 0 | BO40: -928755.767 | BP40: -237076.86 | BQ40: 0 | BR40: 0 | BS40: -237076.86 | BT40: =SUM(BT38,BT39) -> -1165832.627 | BU40: =SUM(BU38,BU39) -> -1165832 | BV40: =SUM(BV38,BV39) -> 0.6270000004
A42: 29 | D42: 1568 | S42: =O42+P42-Q42+SUM(R42:R42) -> 0 | X42: =T42+U42-V42+W42 -> 0 | Y42: =S42 -> 0 | AC42: =Y42+Z42-AA42+SUM(AB42:AB42) -> 0 | AD42: =X42 -> 0 | AH42: =AD42+AE42-AF42+AG42 -> 0 | AI42: =AC42 -> 0 | AM42: =AI42+AJ42-AK42+SUM(AL42:AL42) -> 0 | AN42: =AH42 -> 0 | AR42: =AN42+AO42-AP42+AQ42 -> 0 | AS42: =AM42 -> 0 | AW42: =AS42+AT42-AU42+SUM(AV42:AV42) -> 0 | AX42: =AR42 -> 0 | BB42: =AX42+AY42-AZ42+BA42 -> 0 | BC42: =AW42 -> 0 | BE42: 0 | BG42: =BC42+BD42-BE42+SUM(BF42:BF42) -> 0 | BH42: =BB42 -> 0 | BL42: =BH42+BI42-BJ42+BK42 -> 0 | BO42: =BG42-BM42 -> 0 | BP42: =BL42-BN42 -> 0 | BS42: =BP42+BQ42+BR42 -> 0 | BT42: =SUM(BO42:BR42) -> 0 | BU42: 0 | BV42: =BU42-SUM(BG42,BL42) -> 0
E44: =SUM(E40,E42) -> -1862679.79 | F44: =SUM(F40,F42) -> -1524070.13 | G44: -1683566 | H44: 0 | I44: -1703183.92 | J44: 85657.49 | K44: -17085.72 | L44: 98103 | M44: 0 | N44: -29531.23 | O44: -1703183.92 | P44: -386705 | Q44: 0 | R44: 0 | S44: -2089888.92 | T44: -29531.23 | U44: -32487 | V44: 0 | W44: 0 | X44: -62018.23 | Y44: -2089888.92 | Z44: -923166 | AA44: -1748467 | AB44: 0 | AC44: -1264587.92 | AD44: -62018.23 | AE44: -30207 | AF44: -85791 | AG44: 0 | AH44: -6434.23 | AI44: -1264587.92 | AJ44: -1311568 | AK44: 0 | AL44: 0 | AM44: -2576155.92 | AN44: -6434.23 | AO44: -68238 | AP44: 0 | AQ44: 69076 | AR44: -5596.23 | AS44: -2576155.92 | AT44: 762628.473 | AU44: 146523 | AV44: 0 | AW44: -1960050.447 | AX44: -5596.23 | AY44: -161036.26 | AZ44: -146523 | BA44: -53701 | BB44: -73810.49 | BC44: -1960050.447 | BD44: 2389031.16 | BE44: 1357736.48 | BF44: 0 | BG44: -928755.767 | BH44: -73810.49 | BI44: -10656.37 | BJ44: 152610 | BK44: 0 | BL44: -237076.86 | BM44: 0 | BN44: 0 | BO44: -928755.767 | BP44: -237076.86 | BQ44: 0 | BR44: =SUM(BR40,BR42) -> 0 | BS44: =SUM(BS40,BS42) -> -237076.86 | BT44: =SUM(BT40,BT42) -> -1165832.627 | BU44: =SUM(BU40,BU42) -> -1165832 | BV44: =SUM(BV40,BV42) -> 0.6270000004
B50: 1
B51: 2
B52: 3
B53: 4

Sheet 2016 List (hidden)
X1: 9 | Y1: 0

Sheet 4. Billing Det. for Def-Var
B2: TRUE
C17: 246568730.1 | D17: 0 | E17: 13729528.84 | F17: 0 | I17: =C17-G17 -> 246568730.1 | J17: 0 | L17: 0.5013832997 | N17: 0.5013832997 | P17: 0.5013832997 | Q17: 0.5013832997 | S17: 26713
C18: 65860609.39 | D18: 0 | E18: 16824574.17 | F18: 0 | I18: 65860609.39 | J18: 0 | L18: 0.1339237528 | N18: 0.1339237528 | P18: 0.1339237528 | Q18: 0.1339237528 | S18: 1926
C19: 153968819 | D19: 467566 | E19: 135921417.1 | F19: 414844.9 | I19: 153968819 | J19: 467566 | L19: 0.3130867182 | N19: 0.3130867182 | P19: 0.3130867182 | Q19: 0.3130867182
C20: 17123392 | D20: 37510 | E20: 17123392 | F20: 37510 | I20: 17123392 | J20: 37510 | L20: 0.03481943059 | N20: 0.03481943059 | P20: 0.03481943059 | Q20: 0.03481943059
C21: 1565940.07 | D21: 0 | E21: 469298 | F21: 0 | I21: 1565940.07 | J21: 0 | L21: 0.003184248867 | N21: 0.003184248867 | P21: 0.003184248867 | Q21: 0.003184248867
C22: 321764.83 | D22: 896.01 | E22: 28782 | F22: 77 | I22: 321764.83 | J22: 896.01 | L22: 0.0006542902343 | N22: 0.0006542902343 | P22: 0.0006542902343 | Q22: 0.0006542902343
C23: 6367655.09 | D23: 10936 | E23: 6367655.09 | F23: 10936 | I23: 6367655.09 | J23: 10936 | L23: 0.01294825957 | N23: 0.01294825957 | P23: 0.01294825957 | Q23: 0.01294825957
C24: =SUM($C$17:$C$23) -> 491776910.5 | D24: =SUM($D$17:$D$23) -> 516908.01 | E24: =SUM($E$17:$E$23) -> 190464647.2 | F24: =SUM($F$17:$F$23) -> 463367.9 | G24: =SUM($G$17:$G$23) -> 0 | H24: =SUM($H$17:$H$23) -> 0 | I24: =SUM($I$17:$I$23) -> 491776910.5 | J24: =SUM($J$17:$J$23) -> 516908.01 | K24: =SUM($K$17:$K$23) -> 0 | L24: =SUM($L$17:$L$23) -> 1 | M24: =SUM($M$17:$M$23) -> 0 | N24: =SUM($N$17:$N$23) -> 1 | O24: =SUM($O$17:$O$23) -> 0 | P24: =SUM($P$17:$P$23) -> 1 | Q24: =SUM($Q$17:$Q$23) -> 1 | R24: =SUM($R$17:$R$23) -> 0 | S24: =SUM($S$17:$S$23) -> 28639
T26: ='3. Continuity Schedule'!BT42 -> 0
C27: -1165832.627 | R27: =IF(T26=R24,"Total Balance of Account 1568 in Column R matches the amount entered on the Continuity Schedule","Total Balance of Account 1568 in Column R DOES NOT MATCH the amount entered on the Continuity Schedule") -> Total Balance of Account 1568 in Column R matches the amount entered on the Continuity Schedule
C28: -1165832.627
C29: -0.002370653445

Sheet 2 1 5 TotalConsumptionData_Dist (hidden)
A5: 2016 | F5: 2692519.29 | G5: 6416 | H5: 4531153.17 | I5: 15176.17 | J5: 79305311.22 | K5: 186669.1 | L5: 83836464.39 | M5: 201845.27 | N5: 86528983.68 | O5: 208261.27
A6: 2016 | F6: 3333837.04 | G6: 0 | H6: 103672663.2 | I6: 0 | J6: 0 | K6: 0 | L6: 103672663.2 | M6: 0 | N6: 107006500.3 | O6: 0
A7: 2016 | F7: 49561.54 | G7: 0 | H7: 6818828.66 | I7: 0 | J7: 0 | K7: 0 | L7: 6818828.66 | M7: 0 | N7: 6868390.2 | O7: 0
A8: 2016 | F8: 253883.5 | G8: 0 | H8: 0 | I8: 0 | J8: 488812.8 | K8: 0 | L8: 488812.8 | M8: 0 | N8: 742696.3 | O8: 0
A9: 2016 | F9: 668520 | G9: 2044 | H9: 0 | I9: 0 | J9: 16902580 | K9: 48855 | L9: 16902580 | M9: 48855 | N9: 17571100 | O9: 50899
A10: 2016 | F10: 110276 | G10: 0 | H10: 4999955 | I10: 0 | J10: 0 | K10: 0 | L10: 4999955 | M10: 0 | N10: 5110231 | O10: 0
A11: 2016 | F11: 170206 | G11: 0 | H11: 9055158 | I11: 0 | J11: 0 | K11: 0 | L11: 9055158 | M11: 0 | N11: 9225364 | O11: 0
A12: 2016 | F12: 0 | G12: 0 | H12: 0 | I12: 0 | J12: 463596 | K12: 1436 | L12: 463596 | M12: 1436 | N12: 463596 | O12: 1436
A13: 2016 | F13: 17432080 | G13: 31612 | H13: 0 | I13: 0 | J13: 141892363 | K13: 315190 | L13: 141892363 | M13: 315190 | N13: 159324443 | O13: 346802
A14: 2016 | F14: 29923789 | G14: 98192 | H14: 43867520 | I14: 116644 | J14: 131550596 | K14: 358466 | L14: 175418116 | M14: 475110 | N14: 205341905 | O14: 573302
A15: 2016 | F15: 0 | G15: 0 | H15: 0 | I15: 0 | J15: 4861852 | K15: 9171 | L15: 4861852 | M15: 9171 | N15: 4861852 | O15: 9171
A16: 2016 | F16: =SUM(F14:F15) -> 29923789 | G16: =SUM(G14:G15) -> 98192 | H16: 43867520 | I16: 116644 | J16: 136412448 | K16: 367637 | L16: 180279968 | M16: 484281 | N16: 210203757 | O16: 582473
A17: 2016 | F17: 14944265 | G17: 0 | H17: 90053335 | I17: 0 | J17: 0 | K17: 0 | L17: 90053335 | M17: 0 | N17: 104997600 | O17: 0 | T17: =E17-G17-L17 ->  | U17: -75109070 | V17: =T17/T21 -> 
A18: 2016 | F18: 0 | G18: 0 | H18: 0 | I18: 0 | J18: 142415629 | K18: 203770 | L18: 142415629 | M18: 203770 | N18: 142415629 | O18: 203770 | U18: -203770 | V18: =T18/T21 -> 
A19: 2016 | F19: 0 | G19: 0 | H19: 0 | I19: 0 | J19: 116073155 | K19: 196881 | L19: 116073155 | M19: 196881 | N19: 116073155 | O19: 196881 | U19: -196881 | V19: =T19/T21 -> 
A20: 2016 | F20: =SUM(F18:F19) -> 0 | G20: 0 | H20: 0 | I20: 0 | J20: 258488784 | K20: 400651 | L20: 258488784 | M20: 400651 | N20: 258488784 | O20: 400651 | U20: -400651 | V20: =T20/T21 -> 
A21: 2016 | F21: 13995887 | G21: 0 | H21: 233535927 | I21: 0 | J21: 0 | K21: 0 | L21: 233535927 | M21: 0 | N21: 247531814 | O21: 0
A22: 2016 | F22: 24216.96 | G22: 29 | H22: 0 | I22: 0 | J22: 483163 | K22: 1225 | L22: 483163 | M22: 1225 | N22: 507379.96 | O22: 1254
A23: 2016 | F23: 0 | G23: 0 | H23: 0 | I23: 0 | J23: 6427057 | K23: 17287 | L23: 6427057 | M23: 17287 | N23: 6427057 | O23: 17287
A24: 2016 | F24: 0 | G24: 0 | H24: 2211250 | I24: 0 | J24: 0 | K24: 0 | L24: 2211250 | M24: 0 | N24: 2211250 | O24: 0
A25: 2016 | F25: 0 | G25: 0 | H25: 0 | I25: 0 | J25: 0 | K25: 0 | L25: 0 | M25: 0 | N25: 0 | O25: 0
A26: 2016 | F26: 33636347 | G26: 99504 | H26: 0 | I26: 0 | J26: 124170242 | K26: 250435 | L26: 124170242 | M26: 250435 | N26: 157806589 | O26: 349939
A27: 2016 | F27: 5918267 | G27: 0 | H27: 27917188 | I27: 407.48 | J27: 0 | K27: 0 | L27: 27917188 | M27: 407.48 | N27: 33835455 | O27: 407.48
A28: 2016 | F28: 3215849 | G28: 0 | H28: 78091679 | I28: 0 | J28: 0 | K28: 0 | L28: 78091679 | M28: 0 | N28: 81307528 | O28: 0
A29: 2016 | F29: 26588 | G29: 0 | H29: 103263 | I29: 379.35 | J29: 0 | K29: 0 | L29: 103263 | M29: 379.35 | N29: 129851 | O29: 379.35
A30: 2016 | F30: 1696635 | G30: 4770 | H30: 0 | I30: 0 | J30: 997 | K30: 0 | L30: 997 | M30: 0 | N30: 1697632 | O30: 4770
A31: 2016 | F31: 222815 | G31: 0 | H31: 240491 | I31: 0 | J31: 0 | K31: 0 | L31: 240491 | M31: 0 | N31: 463306 | O31: 0
A32: 2016 | F32: 0 | G32: 0 | H32: 0 | I32: 0 | J32: 68321609 | K32: 142203.4 | L32: 68321609 | M32: 142203.4 | N32: 68321609 | O32: 142203.4
A33: 2016 | F33: 113832476.1 | G33: 303092 | H33: 34798942 | I33: 131694 | J33: 362421097 | K33: 954360 | L33: 397220039 | M33: 1086054 | N33: 511052515.1 | O33: 1389146
A34: 2016 | F34: 13633043.86 | G34: 0 | H34: 85601145 | I34: 0 | J34: 29552 | K34: 0 | L34: 85630697 | M34: 0 | N34: 99263740.86 | O34: 0
A35: 2016 | F35: 19368894.09 | G35: 0 | H35: 266108385 | I35: 0 | J35: 0 | K35: 0 | L35: 266108385 | M35: 0 | N35: 285477279.1 | O35: 0
A36: 2016 | F36: 18163.96 | G36: 55 | H36: 365091 | I36: 1115 | J36: 59864 | K36: 183 | L36: 424955 | M36: 1298 | N36: 443118.96 | O36: 1353
A37: 2016 | F37: 0 | G37: 0 | H37: 0 | I37: 0 | J37: 7101494 | K37: 21707 | L37: 7101494 | M37: 21707 | N37: 7101494 | O37: 21707
A38: 2016 | F38: 0 | G38: 0 | H38: 1506118 | I38: 0 | J38: 0 | K38: 0 | L38: 1506118 | M38: 0 | N38: 1506118 | O38: 0
A39: 2016 | F39: 191716972 | G39: 473779 | H39: 118023444 | I39: 349266 | J39: 591950400 | K39: 1567289 | L39: 709973844 | M39: 1916555 | N39: 901690816 | O39: 2390334
A40: 2016 | F40: 26241201 | G40: 567 | H40: 141834540 | I40: 543 | J40: 307818 | K40: 505 | L40: 142142358 | M40: 1048 | N40: 168383559 | O40: 1615
A41: 2016 | F41: 16766066 | G41: 0 | H41: 512664885 | I41: 0 | J41: 0 | K41: 0 | L41: 512664885 | M41: 0 | N41: 529430951 | O41: 0
A42: 2016 | F42: 0 | G42: 0 | H42: 46550 | I42: 131 | J42: 9872218 | K42: 27536 | L42: 9918768 | M42: 27667 | N42: 9918768 | O42: 27667
A43: 2016 | F43: 0 | G43: 0 | H43: 3091043 | I43: 0 | J43: 0 | K43: 0 | L43: 3091043 | M43: 0 | N43: 3091043 | O43: 0
A44: 2016 | F44: 0 | G44: 0 | H44: 0 | I44: 0 | J44: 13548203 | K44: 28843.22 | L44: 13548203 | M44: 28843.22 | N44: 13548203 | O44: 28843.22
A45: 2016 | F45: 0 | G45: 0 | H45: 0 | I45: 0 | J45: 0 | K45: 108928.8 | L45: 0 | M45: 108928.8 | N45: 0 | O45: 108928.8
A46: 2016 | F46: =SUM(F44:F45) -> 0 | G46: =SUM(G44:G45) -> 0 | H46: 0 | I46: 0 | J46: 13548203 | K46: 137772.02 | L46: 13548203 | M46: 137772.02 | N46: 13548203 | O46: 137772.02
A47: 2016 | F47: 68969295 | G47: 0 | H47: 0 | I47: 0 | J47: 188789212 | K47: 391367 | L47: 188789212 | M47: 391367 | N47: 257758507 | O47: 391367
A48: 2016 | F48: 85818807 | G48: 0 | H48: 134435481 | I48: 0 | J48: 202613461 | K48: 1071817 | L48: 337048942 | M48: 1071817 | N48: 422867749 | O48: 1071817
A49: 2016 | F49: 24701976 | G49: 0 | H49: 142389060 | I49: 0 | J49: 60468 | K49: 0 | L49: 142449528 | M49: 0 | N49: 167151504 | O49: 0
A50: 2016 | F50: 0 | G50: 0 | H50: 0 | I50: 0 | J50: 207374362 | K50: 430087 | L50: 207374362 | M50: 430087 | N50: 207374362 | O50: 430087
A51: 2016 | F51: 18707073 | G51: 0 | H51: 382624949 | I51: 0 | J51: 0 | K51: 0 | L51: 382624949 | M51: 0 | N51: 401332022 | O51: 0
A52: 2016 | F52: 6859394 | G52: 0 | H52: 0 | I52: 0 | J52: 2837239 | K52: 7928 | L52: 2837239 | M52: 7928 | N52: 9696633 | O52: 7928
A53: 2016 | F53: 4020 | G53: 0 | H53: 1963575 | I53: 0 | J53: 5944 | K53: 0 | L53: 1969519 | M53: 0 | N53: 1973539 | O53: 0
A54: 2016 | F54: 370740.31 | G54: 900 | H54: 1956051.3 | I54: 4863.5 | J54: 14132925.88 | K54: 38309.12 | L54: 16088977.18 | M54: 43172.62 | N54: 16459717.49 | O54: 44072.62
A55: 2016 | F55: 3877741.37 | G55: 13068 | H55: 9209908.27 | I55: 31641.44 | J55: 85075228.75 | K55: 225993.87 | L55: 94285137.02 | M55: 257635.31 | N55: 98162878.39 | O55: 270703.31
A56: 2016 | F56: 9103852.59 | G56: 44985 | H56: 7253948.3 | I56: 21997.03 | J56: 68866316.82 | K56: 247130.13 | L56: 76120265.12 | M56: 269127.16 | N56: 85224117.71 | O56: 314112.16
A57: 2016 | F57: 1300972.52 | G57: 0 | H57: 10688901.53 | I57: 0 | J57: 0 | K57: 0 | L57: 10688901.53 | M57: 0 | N57: 11989874.05 | O57: 0
A58: 2016 | F58: 5033014.55 | G58: 0 | H58: 27282739.36 | I58: 0 | J58: 0 | K58: 0 | L58: 27282739.36 | M58: 0 | N58: 32315753.91 | O58: 0
A59: 2016 | F59: 4293030.84 | G59: 0 | H59: 19889039.79 | I59: 0 | J59: 0 | K59: 0 | L59: 19889039.79 | M59: 0 | N59: 24182070.63 | O59: 0
A60: 2016 | F60: 1692162.77 | G60: 0 | H60: 25990712.98 | I60: 0 | J60: 0 | K60: 0 | L60: 25990712.98 | M60: 0 | N60: 27682875.75 | O60: 0
A61: 2016 | F61: 6741333.73 | G61: 0 | H61: 103951331 | I61: 0 | J61: 0 | K61: 0 | L61: 103951331 | M61: 0 | N61: 110692664.8 | O61: 0
A62: 2016 | F62: 3826314.05 | G62: 0 | H62: 57537814.52 | I62: 0 | J62: 0 | K62: 0 | L62: 57537814.52 | M62: 0 | N62: 61364128.57 | O62: 0
A63: 2016 | F63: 0 | G63: 0 | H63: 34817.5 | I63: 115.9 | J63: 0 | K63: 0 | L63: 34817.5 | M63: 115.9 | N63: 34817.5 | O63: 115.9
A64: 2016 | F64: 0 | G64: 0 | H64: 642135.22 | I64: 2106 | J64: 0 | K64: 0 | L64: 642135.22 | M64: 2106 | N64: 642135.22 | O64: 2106
A65: 2016 | F65: 0 | G65: 0 | H65: 13703.95 | I65: 46.12 | J65: 0 | K65: 0 | L65: 13703.95 | M65: 46.12 | N65: 13703.95 | O65: 46.12
A66: 2016 | F66: 0 | G66: 0 | H66: 15789.72 | I66: 48 | J66: 523881.82 | K66: 1594.74 | L66: 539671.54 | M66: 1642.74 | N66: 539671.54 | O66: 1642.74
A67: 2016 | F67: 16767.78 | G67: 51 | H67: 62525.7 | I67: 187.68 | J67: 2105278.88 | K67: 6408.36 | L67: 2167804.58 | M67: 6596.04 | N67: 2184572.36 | O67: 6647.04
A68: 2016 | F68: 0 | G68: 0 | H68: 26756.74 | I68: 81.72 | J68: 946574.29 | K68: 2837.14 | L68: 973331.03 | M68: 2918.86 | N68: 973331.03 | O68: 2918.86
A69: 2016 | F69: 0 | G69: 0 | H69: 158150.5 | I69: 0 | J69: 0 | K69: 0 | L69: 158150.5 | M69: 0 | N69: 158150.5 | O69: 0
A70: 2016 | F70: 600.03 | G70: 0 | H70: 788522.7 | I70: 0 | J70: 0 | K70: 0 | L70: 788522.7 | M70: 0 | N70: 789122.73 | O70: 0
A71: 2016 | F71: 3960.01 | G71: 0 | H71: 549309.08 | I71: 0 | J71: 0 | K71: 0 | L71: 549309.08 | M71: 0 | N71: 553269.09 | O71: 0
A72: 2016 | F72: 0 | G72: 0 | H72: 0 | I72: 0 | J72: 17295612 | K72: 41432.5 | L72: 17295612 | M72: 41432.5 | N72: 17295612 | O72: 41432.5
A73: 2016 | F73: 9878416 | G73: 26083 | H73: 754224 | I73: 3028.85 | J73: 45012605.65 | K73: 119864.87 | L73: 45766829.65 | M73: 122893.72 | N73: 55645245.65 | O73: 148976.72
A74: 2016 | F74: 4422972 | G74: 0 | H74: 16980621 | I74: 0 | J74: 5089 | K74: 0 | L74: 16985710 | M74: 0 | N74: 21408682 | O74: 0
A75: 2016 | F75: 2576311 | G75: 0 | H75: 42520616.6 | I75: 0 | J75: 0 | K75: 0 | L75: 42520616.6 | M75: 0 | N75: 45096927.6 | O75: 0
A76: 2016 | F76: 12918 | G76: 36 | H76: 26352 | I76: 73.2 | J76: 0 | K76: 0 | L76: 26352 | M76: 73.2 | N76: 39270 | O76: 109.2
A77: 2016 | F77: 0 | G77: 0 | H77: 0 | I77: 0 | J77: 976129 | K77: 2727.2 | L77: 976129 | M77: 2727.2 | N77: 976129 | O77: 2727.2
A78: 2016 | F78: 22368 | G78: 0 | H78: 541471 | I78: 0 | J78: 0 | K78: 0 | L78: 541471 | M78: 0 | N78: 563839 | O78: 0
A79: 2016 | F79: 728749 | G79: 1659 | H79: 0 | I79: 0 | J79: 6138854 | K79: 16402 | L79: 6138854 | M79: 16402 | N79: 6867603 | O79: 18061
A80: 2016 | F80: 127178 | G80: 0 | H80: 4780409 | I80: 0 | J80: 0 | K80: 0 | L80: 4780409 | M80: 0 | N80: 4907587 | O80: 0
A81: 2016 | F81: 78296 | G81: 0 | H81: 13648992 | I81: 0 | J81: 0 | K81: 0 | L81: 13648992 | M81: 0 | N81: 13727288 | O81: 0
A82: 2016 | F82: 0 | G82: 0 | H82: 23735 | I82: 58.92 | J82: 0 | K82: 0 | L82: 23735 | M82: 58.92 | N82: 23735 | O82: 58.92
A83: 2016 | F83: 0 | G83: 0 | H83: 274259 | I83: 768 | J83: 0 | K83: 0 | L83: 274259 | M83: 768 | N83: 274259 | O83: 768
A84: 2016 | F84: 0 | G84: 0 | H84: 2892 | I84: 0 | J84: 0 | K84: 0 | L84: 2892 | M84: 0 | N84: 2892 | O84: 0
A85: 2016 | F85: 20401156 | G85: 52098 | H85: 9040610.3 | I85: 29901.57 | J85: 96056222.61 | K85: 220976 | L85: 105096832.9 | M85: 250877.57 | N85: 125497988.9 | O85: 302975.57
A86: 2016 | F86: 8328216 | G86: 459 | H86: 37520762.26 | I86: 729.5 | J86: 555426.2 | K86: 3062.88 | L86: 38076188.46 | M86: 3792.38 | N86: 46404404.46 | O86: 4251.38
A87: 2016 | F87: 7832983 | G87: 0 | H87: 113744317.3 | I87: 0 | J87: 0 | K87: 0 | L87: 113744317.3 | M87: 0 | N87: 121577300.3 | O87: 0
A88: 2016 | F88: 251976 | G88: 708 | H88: 0 | I88: 0 | J88: 1932379.94 | K88: 5430.48 | L88: 1932379.94 | M88: 5430.48 | N88: 2184355.94 | O88: 6138.48
A89: 2016 | F89: 24519 | G89: 0 | H89: 374931.51 | I89: 0 | J89: 0 | K89: 0 | L89: 374931.51 | M89: 0 | N89: 399450.51 | O89: 0
A90: 2016 | F90: 1290279 | G90: 0 | H90: 0 | I90: 0 | J90: 3026090 | K90: 12238 | L90: 3026090 | M90: 12238 | N90: 4316369 | O90: 12238
A91: 2016 | F91: 331436 | G91: 0 | H91: 4262761 | I91: 0 | J91: 0 | K91: 0 | L91: 4262761 | M91: 0 | N91: 4594197 | O91: 0
A92: 2016 | F92: 517654 | G92: 0 | H92: 18859886 | I92: 0 | J92: 0 | K92: 0 | L92: 18859886 | M92: 0 | N92: 19377540 | O92: 0
A93: 2016 | F93: 373174 | G93: 0 | H93: 0 | I93: 0 | J93: 0 | K93: 1045 | L93: 0 | M93: 1045 | N93: 373174 | O93: 1045
A94: 2016 | F94: 12998 | G94: 0 | H94: 81286 | I94: 0 | J94: 0 | K94: 0 | L94: 81286 | M94: 0 | N94: 94284 | O94: 0
A95: 2016 | F95: 0 | G95: 0 | H95: 0 | I95: 0 | J95: 62245251 | K95: 135969 | L95: 62245251 | M95: 135969 | N95: 62245251 | O95: 135969
A96: 2016 | F96: 0 | G96: 0 | H96: 2335086 | I96: 7813 | J96: 56042062 | K96: 187515 | L96: 58377148 | M96: 195328 | N96: 58377148 | O96: 195328
A97: 2016 | F97: 0 | G97: 0 | H97: 25473582 | I97: 0 | J97: 3148420 | K97: 0 | L97: 28622002 | M97: 0 | N97: 28622002 | O97: 0
A98: 2016 | F98: 1 | G98: 1 | H98: 85294090 | I98: 0 | J98: 5444303 | K98: 0 | L98: 90738393 | M98: 0 | N98: 90738394 | O98: 1
A99: 2016 | F99: 0 | G99: 0 | H99: 0 | I99: 0 | J99: 165452 | K99: 437 | L99: 165452 | M99: 437 | N99: 165452 | O99: 437
A100: 2016 | F100: 0 | G100: 0 | H100: 0 | I100: 0 | J100: 2263158 | K100: 6398 | L100: 2263158 | M100: 6398 | N100: 2263158 | O100: 6398
A101: 2016 | F101: 0 | G101: 0 | H101: 0 | I101: 0 | J101: 259607 | K101: 0 | L101: 259607 | M101: 0 | N101: 259607 | O101: 0
A102: 2016 | F102: 61681994.76 | G102: 142274 | H102: 22240156 | I102: 49031.59 | J102: 147967916 | K102: 369467.7 | L102: 170208072 | M102: 418499.29 | N102: 231890066.8 | O102: 560773.29
A103: 2016 | F103: 321688708.9 | G103: 990349 | H103: 323634734 | I103: 893170.84 | J103: 1233871085 | K103: 3574747.38 | L103: 1557505819 | M103: 4467918.22 | N103: 1879194528 | O103: 5458267.22
A104: 2016 | F104: =SUM(F102:F103) -> 383370703.7 | G104: =SUM(G102:G103) -> 1132623 | H104: 345874890 | I104: 942202.43 | J104: 1381839001 | K104: 3944215.08 | L104: 1727713891 | M104: 4886417.51 | N104: 2111084595 | O104: 6019040.51
A105: 2016 | F105: 430881491.5 | G105: 880399 | H105: 69463330 | I105: 147396.18 | J105: 1019039521 | K105: 2306857.91 | L105: 1088502851 | M105: 2454254.09 | N105: 1519384343 | O105: 3334653.09
A106: 2016 | F106: 52532123.48 | G106: 125298 | H106: 97513004 | I106: 207783.18 | J106: 328830618 | K106: 875780.65 | L106: 426343622 | M106: 1083563.83 | N106: 478875745.5 | O106: 1208861.83
A107: 2016 | F107: =SUM(F105:F106) -> 483413615 | G107: =SUM(G105:G106) -> 1005697 | H107: 166976334 | I107: 355179.36 | J107: 1347870139 | K107: 3182638.56 | L107: 1514846473 | M107: 3537817.92 | N107: 1998260088 | O107: 4543514.92
A108: 2016 | F108: 109960337.6 | G108: 0 | H108: 540980684 | I108: 0 | J108: 0 | K108: 0 | L108: 540980684 | M108: 0 | N108: 650941021.6 | O108: 0
A109: 2016 | F109: 356754141.8 | G109: 669070 | H109: 0 | I109: 0 | J109: 525307049 | K109: 966474.61 | L109: 525307049 | M109: 966474.61 | N109: 882061190.8 | O109: 1635544.61
A110: 2016 | F110: 0 | G110: 0 | H110: 0 | I110: 0 | J110: 49828833 | K110: 97086.31 | L110: 49828833 | M110: 97086.31 | N110: 49828833 | O110: 97086.31
A111: 2016 | F111: =SUM(F109:F110) -> 356754141.8 | G111: =SUM(G109:G110) -> 669070 | H111: 0 | I111: 0 | J111: 575135882 | K111: 1063560.92 | L111: 575135882 | M111: 1063560.92 | N111: 931890023.8 | O111: 1732630.92
A112: 2016 | F112: 82426794.57 | G112: 0 | H112: 1393242590 | I112: 0 | J112: 0 | K112: 0 | L112: 1393242590 | M112: 0 | N112: 1475669385 | O112: 0
A113: 2016 | F113: 0 | G113: 0 | H113: 0 | I113: 0 | J113: 25086656 | K113: 71868.66 | L113: 25086656 | M113: 71868.66 | N113: 25086656 | O113: 71868.66
A114: 2016 | F114: 512004.52 | G114: 0 | H114: 10240932 | I114: 0 | J114: 0 | K114: 0 | L114: 10240932 | M114: 0 | N114: 10752936.52 | O114: 0
A115: 2016 | F115: 953822.42 | G115: 1910 | H115: 58232.32 | I115: 175.4 | J115: 517713.26 | K115: 1462.95 | L115: 575945.58 | M115: 1638.35 | N115: 1529768 | O115: 3548.35
A116: 2016 | F116: 11969320.88 | G116: 29079 | H116: 6172522.55 | I116: 17256.76 | J116: 86323011.61 | K116: 188865.29 | L116: 92495534.16 | M116: 206122.05 | N116: 104464855 | O116: 235201.05
A117: 2016 | F117: 54682160.99 | G117: 160156 | H117: 41399755.34 | I117: 115964.79 | J117: 144885581.3 | K117: 394694.87 | L117: 186285336.6 | M117: 510659.66 | N117: 240967497.6 | O117: 670815.66
A118: 2016 | F118: 38837452.83 | G118: 82157 | H118: 0 | I118: 0 | J118: 81493051.98 | K118: 207120.58 | L118: 81493051.98 | M118: 207120.58 | N118: 120330504.8 | O118: 289277.58
A119: 2016 | F119: =SUM(F115:F118) -> 106442757.1 | G119: =SUM(G115:G118) -> 273302 | H119: 47630510.21 | I119: 133396.95 | J119: 313219358.2 | K119: 792143.69 | L119: 360849868.4 | M119: 925540.64 | N119: 467292625.5 | O119: 1198842.64
A120: 2016 | F120: 0 | G120: 0 | H120: 0 | I120: 0 | J120: 27688080.21 | K120: 86830 | L120: 27688080.21 | M120: 86830 | N120: 27688080.21 | O120: 86830
A121: 2016 | F121: 14347259.97 | G121: 0 | H121: 74992835.68 | I121: 0 | J121: 0 | K121: 0 | L121: 74992835.68 | M121: 0 | N121: 89340095.65 | O121: 0
A122: 2016 | F122: 133334.36 | G122: 0 | H122: 3195549.64 | I122: 0 | J122: 0 | K122: 0 | L122: 3195549.64 | M122: 0 | N122: 3328884 | O122: 0
A123: 2016 | F123: 22997.65 | G123: 0 | H123: 570116.35 | I123: 0 | J123: 0 | K123: 0 | L123: 570116.35 | M123: 0 | N123: 593114 | O123: 0
A124: 2016 | F124: 3742300.32 | G124: 0 | H124: 14895973.08 | I124: 0 | J124: 0 | K124: 0 | L124: 14895973.08 | M124: 0 | N124: 18638273.4 | O124: 0
A125: 2016 | F125: =SUM(F121:F124) -> 18245892.3 | G125: =SUM(G121:G124) -> 0 | H125: 93654474.75 | I125: 0 | J125: 0 | K125: 0 | L125: 93654474.75 | M125: 0 | N125: 111900367.1 | O125: 0
A126: 2016 | F126: 0 | G126: 0 | H126: 0 | I126: 0 | J126: 30928749.49 | K126: 62210 | L126: 30928749.49 | M126: 62210 | N126: 30928749.49 | O126: 62210
A127: 2016 | F127: =F120+F126 -> 0 | G127: =G120+G126 -> 0 | H127: 0 | I127: 0 | J127: 58616829.7 | K127: 149040 | L127: 58616829.7 | M127: 149040 | N127: 58616829.7 | O127: 149040
A128: 2016 | F128: 16860541.2 | G128: 0 | H128: 202217668.3 | I128: 0 | J128: 0 | K128: 0 | L128: 202217668.3 | M128: 0 | N128: 219078209.5 | O128: 0
A129: 2016 | F129: 419902.43 | G129: 0 | H129: 4039081.57 | I129: 0 | J129: 0 | K129: 0 | L129: 4039081.57 | M129: 0 | N129: 4458984 | O129: 0
A130: 2016 | F130: 147250.48 | G130: 0 | H130: 1167882.52 | I130: 0 | J130: 0 | K130: 0 | L130: 1167882.52 | M130: 0 | N130: 1315133 | O130: 0
A131: 2016 | F131: 5232594.36 | G131: 0 | H131: 50660529.4 | I131: 0 | J131: 0 | K131: 0 | L131: 50660529.4 | M131: 0 | N131: 55893123.76 | O131: 0
A132: 2016 | F132: =SUM(F128:F131) -> 22660288.47 | G132: =SUM(G128:G131) -> 0 | H132: 258085161.8 | I132: 0 | J132: 0 | K132: 0 | L132: 258085161.8 | M132: 0 | N132: 280745450.3 | O132: 0
A133: 2016 | F133: 6209.02 | G133: 0 | H133: 347478.98 | I133: 983.24 | J133: 0 | K133: 0 | L133: 347478.98 | M133: 983.24 | N133: 353688 | O133: 983.24
A134: 2016 | F134: 0 | G134: 0 | H134: 881 | I134: 2 | J134: 0 | K134: 0 | L134: 881 | M134: 2 | N134: 881 | O134: 2
A135: 2016 | F135: 277.4 | G135: 0 | H135: 43479.58 | I135: 120.9 | J135: 0 | K135: 0 | L135: 43479.58 | M135: 120.9 | N135: 43756.98 | O135: 120.9
A136: 2016 | F136: =SUM(F133:F135) -> 6486.42 | G136: =SUM(G133:G135) -> 0 | H136: 391839.56 | I136: 1106.14 | J136: 0 | K136: 0 | L136: 391839.56 | M136: 1106.14 | N136: 398325.98 | O136: 1106.14
A137: 2016 | F137: 0 | G137: 0 | H137: 0 | I137: 0 | J137: 5926383.7 | K137: 17520.12 | L137: 5926383.7 | M137: 17520.12 | N137: 5926383.7 | O137: 17520.12
A138: 2016 | F138: 0 | G138: 0 | H138: 0 | I138: 0 | J138: 116024 | K138: 343.4 | L138: 116024 | M138: 343.4 | N138: 116024 | O138: 343.4
A139: 2016 | F139: 0 | G139: 0 | H139: 0 | I139: 0 | J139: 55093 | K139: 163.1 | L139: 55093 | M139: 163.1 | N139: 55093 | O139: 163.1
A140: 2016 | F140: 96717.37 | G140: 270 | H140: 0 | I140: 0 | J140: 1235616.33 | K140: 3696.82 | L140: 1235616.33 | M140: 3696.82 | N140: 1332333.7 | O140: 3966.82
A141: 2016 | F141: =SUM(F137:F140) -> 96717.37 | G141: =SUM(G137:G140) -> 270 | H141: 0 | I141: 0 | J141: 7333117.03 | K141: 21723.44 | L141: 7333117.03 | M141: 21723.44 | N141: 7429834.4 | O141: 21993.44
A142: 2016 | F142: 0 | G142: 0 | H142: 922042.96 | I142: 0 | J142: 0 | K142: 0 | L142: 922042.96 | M142: 0 | N142: 922042.96 | O142: 0
A143: 2016 | F143: 0 | G143: 0 | H143: 325760 | I143: 0 | J143: 0 | K143: 0 | L143: 325760 | M143: 0 | N143: 325760 | O143: 0
A144: 2016 | F144: =SUM(F142:F143) -> 0 | G144: =SUM(G142:G143) -> 0 | H144: 1247802.96 | I144: 0 | J144: 0 | K144: 0 | L144: 1247802.96 | M144: 0 | N144: 1247802.96 | O144: 0
A145: 2016 | F145: 0 | G145: 0 | H145: 0 | I145: 0 | J145: 44363940.88 | K145: 128585.57 | L145: 44363940.88 | M145: 128585.57 | N145: 44363940.88 | O145: 128585.57
A146: 2016 | F146: 174752141.2 | G146: 468512 | H146: 191415995.8 | I146: 490048.72 | J146: 577037480.6 | K146: 1454493.73 | L146: 768453476.5 | M146: 1944542.45 | N146: 943205617.7 | O146: 2413054.45
A147: 2016 | F147: 34745536.8 | G147: 0 | H147: 174375677.2 | I147: 0 | J147: 0 | K147: 0 | L147: 174375677.2 | M147: 0 | N147: 209121214 | O147: 0
A148: 2016 | F148: 0 | G148: 0 | H148: 0 | I148: 0 | J148: 241052438.8 | K148: 487724.93 | L148: 241052438.8 | M148: 487724.93 | N148: 241052438.8 | O148: 487724.93
A149: 2016 | F149: 0 | G149: 0 | H149: 0 | I149: 0 | J149: 47202925.82 | K149: 82844.53 | L149: 47202925.82 | M149: 82844.53 | N149: 47202925.82 | O149: 82844.53
A150: 2016 | F150: 24214121.3 | G150: 73464 | H150: 0 | I150: 0 | J150: 276980348 | K150: 485855.81 | L150: 276980348 | M150: 485855.81 | N150: 301194469.3 | O150: 559319.81
A151: 2016 | F151: 30900103.9 | G151: 0 | H151: 568006955.2 | I151: 0 | J151: 0 | K151: 0 | L151: 568006955.2 | M151: 0 | N151: 598907059.1 | O151: 0
A152: 2016 | F152: 58012 | G152: 157 | H152: 823714.68 | I152: 2293.64 | J152: 0 | K152: 0 | L152: 823714.68 | M152: 2293.64 | N152: 881726.68 | O152: 2450.64
A153: 2016 | F153: 0 | G153: 0 | H153: 10890.8 | I153: 31.89 | J153: 17151516.73 | K153: 49113.48 | L153: 17162407.53 | M153: 49145.37 | N153: 17162407.53 | O153: 49145.37
A154: 2016 | F154: 363906 | G154: 0 | H154: 240196.8 | I154: 0 | J154: 1689700.2 | K154: 0 | L154: 1929897 | M154: 0 | N154: 2293803 | O154: 0
A155: 2016 | F155: 0 | G155: 0 | H155: 0 | I155: 0 | J155: 16862049 | K155: 36700.7 | L155: 16862049 | M155: 36700.7 | N155: 16862049 | O155: 36700.7
A156: 2016 | F156: 0 | G156: 0 | H156: 0 | I156: 0 | J156: 0 | K156: 0 | L156: 0 | M156: 0 | N156: 0 | O156: 0
A157: 2016 | F157: 0 | G157: 0 | H157: 0 | I157: 0 | J157: 79838715 | K157: 216209 | L157: 79838715 | M157: 216209 | N157: 79838715 | O157: 216209
A158: 2016 | F158: 0 | G158: 0 | H158: 0 | I158: 0 | J158: 0 | K158: 0 | L158: 0 | M158: 0 | N158: 0 | O158: 0
A159: 2016 | F159: 41214007.07 | G159: 124951 | H159: 52477287.48 | I159: 45503.5 | J159: 21437537.45 | K159: 18588.65 | L159: 73914824.93 | M159: 64092.15 | N159: 115128832 | O159: 189043.15
A160: 2016 | F160: 0 | G160: 0 | H160: 0 | I160: 0 | J160: 0 | K160: 0 | L160: 0 | M160: 0 | N160: 0 | O160: 0
A161: 2016 | F161: 0 | G161: 0 | H161: 0 | I161: 0 | J161: 0 | K161: 0 | L161: 0 | M161: 0 | N161: 0 | O161: 0
A162: 2016 | F162: 11218433.04 | G162: 29859 | H162: 23190364.1 | I162: 26814.6 | J162: 143833.92 | K162: 166.31 | L162: 23334198.02 | M162: 26980.91 | N162: 34552631.06 | O162: 56839.91
A163: 2016 | F163: 0 | G163: 0 | H163: 0 | I163: 0 | J163: 0 | K163: 0 | L163: 0 | M163: 0 | N163: 0 | O163: 0
A164: 2016 | F164: 0 | G164: 0 | H164: 0 | I164: 0 | J164: 0 | K164: 0 | L164: 0 | M164: 0 | N164: 0 | O164: 0
A165: 2016 | F165: 0 | G165: 0 | H165: 0 | I165: 0 | J165: 100247112 | K165: 185866 | L165: 100247112 | M165: 185866 | N165: 100247112 | O165: 185866
A166: 2016 | F166: 0 | G166: 0 | H166: 0 | I166: 0 | J166: 0 | K166: 0 | L166: 0 | M166: 0 | N166: 0 | O166: 0
A167: 2016 | F167: 13939301.86 | G167: 0 | H167: 122954160 | I167: 0 | J167: 0 | K167: 0 | L167: 122954160 | M167: 0 | N167: 136893461.9 | O167: 0
A168: 2016 | F168: 0 | G168: 0 | H168: 0 | I168: 0 | J168: 0 | K168: 0 | L168: 0 | M168: 0 | N168: 0 | O168: 0
A169: 2016 | F169: 0 | G169: 0 | H169: 0 | I169: 0 | J169: 0 | K169: 0 | L169: 0 | M169: 0 | N169: 0 | O169: 0
A170: 2016 | F170: 36344.98 | G170: 0 | H170: 247578 | I170: 0 | J170: 0 | K170: 0 | L170: 247578 | M170: 0 | N170: 283922.98 | O170: 0
A171: 2016 | F171: 0 | G171: 0 | H171: 0 | I171: 0 | J171: 0 | K171: 0 | L171: 0 | M171: 0 | N171: 0 | O171: 0
A172: 2016 | F172: 0 | G172: 0 | H172: 0 | I172: 0 | J172: 0 | K172: 0 | L172: 0 | M172: 0 | N172: 0 | O172: 0
A173: 2016 | F173: 750026.65 | G173: 2214 | H173: 577257.45 | I173: 1477.15 | J173: 731428.93 | K173: 1867.17 | L173: 1308686.38 | M173: 3344.32 | N173: 2058713.03 | O173: 5558.32
A174: 2016 | F174: 0 | G174: 0 | H174: 0 | I174: 0 | J174: 0 | K174: 0 | L174: 0 | M174: 0 | N174: 0 | O174: 0
A175: 2016 | F175: 0 | G175: 0 | H175: 0 | I175: 0 | J175: 0 | K175: 0 | L175: 0 | M175: 0 | N175: 0 | O175: 0
A176: 2016 | F176: 55152 | G176: 0 | H176: 488540 | I176: 0 | J176: 0 | K176: 0 | L176: 488540 | M176: 0 | N176: 543692 | O176: 0
A177: 2016 | F177: 0 | G177: 0 | H177: 0 | I177: 0 | J177: 0 | K177: 0 | L177: 0 | M177: 0 | N177: 0 | O177: 0
A178: 2016 | F178: 0 | G178: 0 | H178: 0 | I178: 0 | J178: 0 | K178: 0 | L178: 0 | M178: 0 | N178: 0 | O178: 0
A179: 2016 | F179: 6861106.97 | G179: 16428 | H179: 1223832.26 | I179: 3357.84 | J179: 8538397.45 | K179: 21429.24 | L179: 9762229.71 | M179: 24787.08 | N179: 16623336.68 | O179: 41215.08
A180: 2016 | F180: 1656804.7 | G180: 3382 | H180: 8703355.28 | I180: 11013.64 | J180: 0 | K180: 0 | L180: 8703355.28 | M180: 11013.64 | N180: 10360159.98 | O180: 14395.64
A181: 2016 | F181: 1482942.24 | G181: 0 | H181: 29382015.21 | I181: 0 | J181: 0 | K181: 0 | L181: 29382015.21 | M181: 0 | N181: 30864957.45 | O181: 0
A182: 2016 | F182: 0 | G182: 0 | H182: 24718 | I182: 0 | J182: 0 | K182: 0 | L182: 24718 | M182: 0 | N182: 24718 | O182: 0
A183: 2016 | F183: 192677.09 | G183: 543 | H183: 0 | I183: 0 | J183: 176757.3 | K183: 496.8 | L183: 176757.3 | M183: 496.8 | N183: 369434.39 | O183: 1039.8
A184: 2016 | F184: 10735.13 | G184: 0 | H184: 112568.89 | I184: 0 | J184: 0 | K184: 0 | L184: 112568.89 | M184: 0 | N184: 123304.02 | O184: 0
A185: 2016 | F185: 0 | G185: 0 | H185: 0 | I185: 0 | J185: 17123392 | K185: 37510 | L185: 17123392 | M185: 37510 | N185: 17123392 | O185: 37510
A186: 2016 | F186: 31917523.5 | G186: 94559 | H186: 18047401.7 | I186: 52720.99 | J186: 104003893.6 | K186: 320285.9 | L186: =H186+J186 -> 122051295.3 | M186: =I186+K186 -> 373006.89 | N186: 153968819 | O186: 467566
A187: 2016 | F187: 14667783.29 | G187: 0 | H187: 49036035.22 | I187: 0 | J187: 2156790.88 | K187: 0 | L187: 51192826.1 | M187: 0 | N187: 65860609.39 | O187: 0
A188: 2016 | F188: 13725748.86 | G188: 0 | H188: 232839201.3 | I188: 0 | J188: 3779.98 | K188: 0 | L188: 232842981.3 | M188: 0 | N188: 246568730.1 | O188: 0
A189: 2016 | F189: 28782 | G189: 77 | H189: 292982.83 | I189: 819.01 | J189: 0 | K189: 0 | L189: 292982.83 | M189: 819.01 | N189: 321764.83 | O189: 896.01
A190: 2016 | F190: 3593540.5 | G190: 10936 | H190: 0 | I190: 0 | J190: 2774114.59 | K190: 0 | L190: 2774114.59 | M190: 0 | N190: 6367655.09 | O190: 10936
A191: 2016 | F191: 469298 | G191: 0 | H191: 1096642.07 | I191: 0 | J191: 0 | K191: 0 | L191: 1096642.07 | M191: 0 | N191: 1565940.07 | O191: 0
A192: 2016 | F192: 68865557.8 | G192: 175825 | H192: 9852698.86 | I192: 25156 | J192: 294618242.2 | K192: 752223 | L192: 304470941 | M192: 777379 | N192: 373336498.8 | O192: 953204
A193: 2016 | F193: 16435776.8 | G193: 0 | H193: 47119887.3 | I193: 0 | J193: 0 | K193: 0 | L193: 47119887.3 | M193: 0 | N193: 63555664.1 | O193: 0
A194: 2016 | F194: 24639647.6 | G194: 39140 | H194: 0 | I194: 0 | J194: 0 | K194: 0 | L194: 0 | M194: 0 | N194: 24639647.6 | O194: 39140
A195: 2016 | F195: 11631368.4 | G195: 0 | H195: 127285427.1 | I195: 0 | J195: 0 | K195: 0 | L195: 127285427.1 | M195: 0 | N195: 138916795.5 | O195: 0
A196: 2016 | F196: 0 | G196: 0 | H196: 0 | I196: 0 | J196: 0 | K196: 0 | L196: 0 | M196: 0 | N196: 0 | O196: 0
A197: 2016 | F197: 0 | G197: 0 | H197: 130859.43 | I197: 363.5 | J197: 0 | K197: 0 | L197: 130859.43 | M197: 363.5 | N197: 130859.43 | O197: 363.5
A198: 2016 | F198: 4001878.5 | G198: 10315 | H198: 305392.5 | I198: 787.61 | J198: 0 | K198: 0 | L198: 305392.5 | M198: 787.61 | N198: 4307271 | O198: 11102.61
A199: 2016 | F199: 62685.7 | G199: 0 | H199: 265611.49 | I199: 0 | J199: 334915.81 | K199: 0 | L199: 600527.3 | M199: 0 | N199: 663213 | O199: 0
A200: 2016 | F200: 433800 | G200: 0 | H200: 3461107 | I200: 0 | J200: 19696144 | K200: 0 | L200: 23157251 | M200: 0 | N200: 23591051 | O200: 0
A201: 2016 | F201: 380754.29 | G201: 0 | H201: 12927617 | I201: 0 | J201: 0 | K201: 0 | L201: 12927617 | M201: 0 | N201: 13308371.29 | O201: 0
A202: 2016 | F202: 245928.49 | G202: 0 | H202: 35792874 | I202: 0 | J202: 0 | K202: 0 | L202: 35792874 | M202: 0 | N202: 36038802.49 | O202: 0
A203: 2016 | F203: 0 | G203: 0 | H203: 418422 | I203: 0 | J203: 418422 | K203: 1159 | L203: 836844 | M203: 1159 | N203: 836844 | O203: 1159
A204: 2016 | F204: 0 | G204: 0 | H204: 62628 | I204: 0 | J204: 0 | K204: 0 | L204: 62628 | M204: 0 | N204: 62628 | O204: 0
... 378 more rows

Sheet 5. Allocating Def-Var Balances
V14: 1568
G15: 1550 | H15: 1551 | I15: 1580 | L15: 1584 | M15: 1586 | N15: 1588
C17: 0.5013832997 | D17: 0.07208439488 | E17: 0.9327490485 | F17: 0.5013832997 | V17: 0
C18: 0.1339237528 | D18: 0.08833436765 | E18: 0.0672509515 | F18: 0.1339237528 | V18: 0
C19: 0.3130867182 | D19: 0.7136306874 | E19: 0 | F19: 0.3130867182 | V19: 0
C20: 0.03481943059 | D20: 0.08990325634 | E20: 0 | F20: 0.03481943059 | V20: 0
C21: 0.003184248867 | D21: 0.002463963822 | E21: 0 | F21: 0.003184248867 | V21: 0
C22: 0.0006542902343 | D22: 0.0001511146579 | E22: 0 | F22: 0.0006542902343 | V22: 0
C23: 0.01294825957 | D23: 0.03343221529 | E23: 0 | F23: 0.01294825957 | V23: 0
C25: =SUM($C$17:$C$23) -> 1 | D25: =SUM($D$17:$D$23) -> 1 | E25: =SUM($E$17:$E$23) -> 1 | F25: =SUM($F$17:$F$23) -> 1 | G25: =SUM($G$17:$G$23) -> 0 | H25: =SUM($H$17:$H$23) -> 0 | I25: =SUM($I$17:$I$23) -> 0 | J25: =SUM($J$17:$J$23) -> 0 | K25: =SUM($K$17:$K$23) -> 0 | L25: =SUM($L$17:$L$23) -> 0 | M25: =SUM($M$17:$M$23) -> 0 | N25: =SUM($N$17:$N$23) -> 0 | O25: =SUM($O$17:$O$23) -> 0 | P25: =SUM($P$17:$P$23) -> 0 | Q25: =SUM($Q$17:$Q$23) -> 0 | R25: =SUM($R$17:$R$23) -> 0 | S25: =SUM($S$17:$S$23) -> 0 | T25: =SUM($T$17:$T$23) -> 0 | U25: =SUM($U$17:$U$23) -> 0 | V25: =SUM($V$17:$V$23) -> 0

Sheet 6. GA calculation
B2: FALSE
C17: 13729528.84 | D17: 0 | I17: =(C17-E17-G17) -> 13729528.84 | J17: 0 | K17: =(I17/I24) -> 0.07208439488 | L17: =(-743119.08*K17) -> -53567.28921 | M17: 0
C18: 16824574.17 | D18: 0 | I18: 16824574.17 | J18: 0 | K18: =(I18/I24) -> 0.08833436765 | L18: -65642.95402 | M18: 0
C19: 135921417.1 | D19: 414844.9 | I19: 135921417.1 | J19: 414844.9 | K19: =(I19/I24) -> 0.7136306874 | L19: -530312.5799 | M19: 0
C20: 17123392 | D20: 37510 | I20: 17123392 | J20: 37510 | K20: =(I20/I24) -> 0.08990325634 | L20: -66808.82514 | M20: 0
C21: 469298 | D21: 0 | I21: 469298 | J21: 0 | K21: =(I21/I24) -> 0.002463963822 | L21: -1831.018528 | M21: 0
C22: 28782 | D22: 77 | I22: 28782 | J22: 77 | K22: =(I22/I24) -> 0.0001511146579 | L22: -112.2961855 | M22: 0
C23: 6367655.09 | D23: 10936 | I23: 6367655.09 | J23: 10936 | K23: =(I23/I24) -> 0.03343221529 | L23: -24844.11707 | M23: 0
C24: 190464647.2 | D24: 463367.9 | E24: =SUM(E17:E23) -> 0 | F24: 0 | G24: 0 | H24: 0 | I24: 190464647.2 | J24: 463367.9 | K24: 1 | L24: -743119.08

Sheet 6.a GA allocation_Class A (hidden)
D19: 2015 | E19: 2014 | F19: 2013 | G19: 2012
C20: =SUM(D20:G20) -> 0
C21: =SUM(D21:G21) -> 0 | D21: =D59 -> 0 | E21: =E59 -> 0 | F21: =F59 -> 0 | G21: =G59 -> 0
C22: =IFERROR(+C21/C20,0) -> 0
C27: ='3. Continuity Schedule'!BT29 -> -743119.08
C28: =+C22*C27 -> 0
C29: =+C27-C28 -> -743119.08

Sheet 7. Calculation of Def-Var RR
C12: 12
C13: 12 | D13: =IF(C13>0, "Rate Rider Recovery to be used below", "If no rate rider recovery period is proposed then the default recovery period of 12 months will be used") -> Rate Rider Recovery to be used below
C17: 246568730.1 | D17: 0 | E17: 246568730.1 | F17: 0 | G17: 0 | I17: =IF(ISERROR(G17/C17),0,IF(OR(ISBLANK(C13), OR(C13=0, C13="")), G17/C17/(C12/12), G17/C17/(C13/12))) -> 0 | K17: =IF(ISERROR(0/C17), 0, IF(OR(ISBLANK(C13), OR(C13=0, C13="")), (0/C17)/(C12/12), (0/C17)/(C13/12))) -> 0 | L17: =C17*I17 -> 0 | M17: =E17*J17 -> 0
C18: 65860609.39 | D18: 0 | E18: 65860609.39 | F18: 0 | G18: 0 | I18: =IF(ISERROR(G18/C18),0,IF(OR(ISBLANK(C13), OR(C13=0, C13="")), G18/C18/(C12/12), G18/C18/(C13/12))) -> 0 | K18: =IF(ISERROR(0/C18), 0, IF(OR(ISBLANK(C13), OR(C13=0, C13="")), (0/C18)/(C12/12), (0/C18)/(C13/12))) -> 0 | L18: =C18*I18 -> 0 | M18: =E18*J18 -> 0
C19: 153968819 | D19: 467566 | E19: 153968819 | F19: 467566 | G19: 0 | I19: =IF(ISERROR(G19/D19),0,IF(OR(ISBLANK(C13), OR(C13=0, C13="")), G19/D19/(C12/12), G19/D19/(C13/12))) -> 0 | K19: =IF(ISERROR(0/D19), 0, IF(OR(ISBLANK(C13), OR(C13=0, C13="")), (0/D19)/(C12/12), (0/D19)/(C13/12))) -> 0 | L19: =D19*I19 -> 0 | M19: =F19*J19 -> 0
C20: 17123392 | D20: 37510 | E20: 17123392 | F20: 37510 | G20: 0 | I20: =IF(ISERROR(G20/D20),0,IF(OR(ISBLANK(C13), OR(C13=0, C13="")), G20/D20/(C12/12), G20/D20/(C13/12))) -> 0 | K20: =IF(ISERROR(0/D20), 0, IF(OR(ISBLANK(C13), OR(C13=0, C13="")), (0/D20)/(C12/12), (0/D20)/(C13/12))) -> 0 | L20: =D20*I20 -> 0 | M20: =F20*J20 -> 0
C21: 1565940.07 | D21: 0 | E21: 1565940.07 | F21: 0 | G21: 0 | I21: =IF(ISERROR(G21/C21),0,IF(OR(ISBLANK(C13), OR(C13=0, C13="")), G21/C21/(C12/12), G21/C21/(C13/12))) -> 0 | K21: =IF(ISERROR(0/C21), 0, IF(OR(ISBLANK(C13), OR(C13=0, C13="")), (0/C21)/(C12/12), (0/C21)/(C13/12))) -> 0 | L21: =C21*I21 -> 0 | M21: =E21*J21 -> 0
C22: 321764.83 | D22: 896.01 | E22: 321764.83 | F22: 896.01 | G22: 0 | I22: =IF(ISERROR(G22/D22),0,IF(OR(ISBLANK(C13), OR(C13=0, C13="")), G22/D22/(C12/12), G22/D22/(C13/12))) -> 0 | K22: =IF(ISERROR(0/D22), 0, IF(OR(ISBLANK(C13), OR(C13=0, C13="")), (0/D22)/(C12/12), (0/D22)/(C13/12))) -> 0 | L22: =D22*I22 -> 0 | M22: =F22*J22 -> 0
C23: 6367655.09 | D23: 10936 | E23: 6367655.09 | F23: 10936 | G23: 0 | I23: =IF(ISERROR(G23/D23),0,IF(OR(ISBLANK(C13), OR(C13=0, C13="")), G23/D23/(C12/12), G23/D23/(C13/12))) -> 0 | K23: =IF(ISERROR(0/D23), 0, IF(OR(ISBLANK(C13), OR(C13=0, C13="")), (0/D23)/(C12/12), (0/D23)/(C13/12))) -> 0 | L23: =D23*I23 -> 0 | M23: =F23*J23 -> 0
L24: =SUM(L17:L23) -> 0 | M24: =SUM(M17:M23) -> 0 | N24: =SUM(L24:M24) -> 0

Sheet 8. STS - Tax Change
U2: 2016-01-01
U5: 0.38
U6: -0.1
U7: =SUM(U5:U6) -> 0.28
U8: -0.13
U9: =U7+U8 -> 0.15
U10: 0.115
U12: =U9+U10 -> 0.265
A15: ="For the " & '1. Information Sheet'!F32 & " year, enter any Tax Credits from the Cost of Service Tax Calculation (Positive #)" -> For the 2010 year, enter any Tax Credits from the Cost of Service Tax Calculation (Positive #) | U15: 500000
U16: 500000
L18: ='1. Information Sheet'!F32 -> 2010 | N18: 2017 | U18: 0.105
L19: 41119713 | N19: =L19 -> 41119713
U20: 0.045
L21: 15000000 | N21: =L21 -> 15000000
L23: =L19-L21 -> 26119713 | N23: =N19-N21 -> 26119713
L25: 0.0015 | N25: 0
L27: =IF(L23>0, L23*L25, 0)*181/365 -> 19428.77282 | N27: 0
L30: 1248461 | N30: =L30 -> 1248461
L32: 0.31 | N32: =IF(ratebase>15000000, 26.5%, IF(ratebase<10000000, 15%, 15%+11.5%*((ratebase-10000000)/5000000))) -> 0.265
L34: 382636 | N34: =N30*N32-L15 -> 330842.165
L36: 525985 | N36: =N34/(1-N32) -> 450125.3946
L38: =L27 -> 19428.77282 | N38: =N27 -> 0
L40: =L36 -> 525985 | N40: =N36 -> 450125.3946
L42: =SUM(L40,L38) -> 545413.7728 | N42: =SUM(N40,N38) -> 450125.3946
N44: =N42-L42 -> -95288.37826
N46: =0.5*N44 -> -47644.18913

Sheet 9. Shared Tax - Rate Rider
C17: 25902 | D17: 271379498 | E17: 0 | F17: 12.55 | G17: 0.0148 | H17: 0 | I17: =F17*C17*12 -> 3900841.2 | J17: =D17*G17 -> 4016416.57 | K17: 0 | L17: =I17+J17+K17 -> 7917257.77 | M17: =IF(ISERROR(I17/L17),0,I17/L17) -> 0.4927010479 | N17: =IF(ISERROR(J17/L17),0,J17/L17) -> 0.5072989521 | O17: =IF(ISERROR(K17/L17),0,K17/L17) -> 0 | P17: =IF(ISERROR(L17/L24),0,L17/L24) -> 0.7012246832
C18: 1852 | D18: 72012960 | E18: 0 | F18: 20.59 | G18: 0.007 | H18: 0 | I18: 457592.16 | J18: 504090.72 | K18: 0 | L18: 961682.88 | M18: 0.4758243799 | N18: 0.5241756201 | O18: 0 | P18: =IF(ISERROR(L18/L24),0,L18/L24) -> 0.08517542215
C19: 222 | D19: 196386718 | E19: 467092 | F19: 300 | G19: 0 | H19: 2.8494 | I19: 799200 | J19: 0 | K19: 1330931.945 | L19: 2130131.945 | M19: 0.3751880262 | N19: 0 | O19: 0.6248119738 | P19: =IF(ISERROR(L19/L24),0,L19/L24) -> 0.1886639467
C20: 0 | D20: 17123392 | E20: 37510 | F20: 1993.42 | G20: 0 | H20: 1.8485 | I20: 0 | J20: 0 | K20: 69337.235 | L20: 69337.235 | M20: 0 | N20: 0 | O20: 1 | P20: =IF(ISERROR(L20/L24),0,L20/L24) -> 0.006141139023
C21: 151 | D21: 1605371 | E21: 0 | F21: 8.91 | G21: 0.0278 | H21: 0 | I21: 16144.92 | J21: 44629.3138 | K21: 0 | L21: 60774.2338 | M21: 0.2656540279 | N21: 0.7343459721 | O21: 0 | P21: =IF(ISERROR(L21/L24),0,L21/L24) -> 0.005382721402
C22: 168 | D22: 390941 | E22: 1076 | F22: 2.05 | G22: 0 | H22: 5.8683 | I22: 4132.8 | J22: 0 | K22: 6314.2908 | L22: 10447.0908 | M22: 0.3955933838 | N22: 0 | O22: 0.6044066162 | P22: =IF(ISERROR(L22/L24),0,L22/L24) -> 0.0009252898098
C23: 2643 | D23: 5929910 | E23: 18024 | F23: 1.75 | G23: 0 | H23: 4.7426 | I23: 55503 | J23: 0 | K23: 85480.6224 | L23: 140983.6224 | M23: 0.3936840255 | N23: 0 | O23: 0.6063159745 | P23: =IF(ISERROR(L23/L24),0,L23/L24) -> 0.01248679768
C24: =SUM(C17:C23) -> 30938 | D24: =SUM(D17:D23) -> 564828790 | E24: =SUM(E17:E23) -> 523702 | I24: =SUM(I17:I23) -> 5233414.08 | J24: =SUM(J17:J23) -> 4565136.604 | K24: =SUM(K17:K23) -> 1492064.093 | L24: =SUM(L17:L23) -> 11290614.78 | P24: =SUM(P17:P23) -> 1
C28: 246568730.1 | D28: 0 | E28: =P17*E35 -> -33409.28204 | F28: =IF(ISERROR(E28/26713), 0,ROUND(E28/26713/12, 2)) -> -0.1
C29: 65860609.39 | D29: 0 | E29: =P18*E35 -> -4058.113996 | F29: =IF(ISERROR(E29/C29), 0,E29/C29) -> -6.161670889e-05
C30: 153968819 | D30: 467566 | E30: =P19*E35 -> -8988.740924 | F30: =IF(ISERROR(E30/D30), 0,E30/D30) -> -0.01922453926
C31: 17123392 | D31: 37510 | E31: =P20*E35 -> -292.5895944 | F31: =IF(ISERROR(E31/D31), 0,E31/D31) -> -0.007800309102
C32: 1565940.07 | D32: 0 | E32: =P21*E35 -> -256.4554012 | F32: =IF(ISERROR(E32/C32), 0,E32/C32) -> -0.0001637708914
C33: 321764.83 | D33: 896.01 | E33: =P22*E35 -> -44.0846835 | F33: =IF(ISERROR(E33/D33), 0,E33/D33) -> -0.04920110658
C34: 6367655.09 | D34: 10936 | E34: =P23*E35 -> -594.9233611 | F34: =IF(ISERROR(E34/D34), 0,E34/D34) -> -0.05440045365
C35: =SUM(C28:C34) -> 491776910.5 | D35: =SUM(D28:D34) -> 516908.01 | E35: =ROUND('8. STS - Tax Change'!N46,2) -> -47644.19

Sheet 10. RTSR Current Rates
AZ1: 1
D17: 0.0052 | E17: 246568730.1 | F17: 0 | G17: 1.0602 | H17: =E17*G17 -> 261412167.7
D18: 0.0034 | E18: 246568730.1 | F18: 0 | G18: 1.0602 | H18: =E18*G18 -> 261412167.7
D19: 0.0045 | E19: 65860609.39 | F19: 0 | G19: 1.0602 | H19: =E19*G19 -> 69825418.08
D20: 0.0032 | E20: 65860609.39 | F20: 0 | G20: 1.0602 | H20: =E20*G20 -> 69825418.08
D21: 1.8436 | E21: 153968819 | F21: 467566
D22: 1.2765 | E22: 153968819 | F22: 467566
D23: 2.271 | E23: 153968819 | F23: 467566
D24: 1.4154 | E24: 153968819 | F24: 467566
D25: 2.271 | E25: 17123392 | F25: 37510
D26: 1.4154 | E26: 17123392 | F26: 37510
D27: 0.0045 | E27: 1565940.07 | F27: 0 | G27: 1.0602 | H27: =E27*G27 -> 1660209.662
D28: 0.0032 | E28: 1565940.07 | F28: 0 | G28: 1.0602 | H28: =E28*G28 -> 1660209.662
D29: 1.4193 | E29: 321764.83 | F29: 896.01
D30: 0.9731 | E30: 321764.83 | F30: 896.01
D31: 1.3995 | E31: 6367655.09 | F31: 10936
D32: 0.9668 | E32: 6367655.09 | F32: 10936

Sheet 11. RTSR - UTRs & Sub-Tx
E18: 2015 | H18: 2016 | J18: 2017
E22: 3.78 | H22: 3.66 | J22: =H22 -> 3.66
E24: 0.86 | H24: 0.87 | J24: =H24 -> 0.87
E26: 2 | H26: 2.02 | J26: =H26 -> 2.02
H29: 2016 | J29: 2017
E35: 3.23 | F35: 3.4121 | H35: 3.3396 | J35: 3.1942
E37: 0.65 | F37: 0.7879 | H37: 0.7791 | J37: 0.771
E39: 1.62 | F39: 1.8018 | H39: 1.7713 | J39: 1.7493
E41: =E39+E37 -> 2.27 | F41: =SUM(F39,F37) -> 2.5897 | H41: =SUM(H39,H37) -> 2.5504 | J41: 2.5203
E44: 2015 | H44: 2016 | J44: 2017
E56: =E54+E52 -> 0 | H56: =H54+H52 -> 0 | J56: =J54+J52 -> 0
E59: 2015 | H59: 2016 | J59: 2017
E71: =E69+E67 -> 0 | H71: =H69+H67 -> 0 | J71: =J69+J67 -> 0

Sheet 12. RTSR - Historical Wholesale
E19: =IF(D19<>0,F19/D19,0) -> 0 | I19: =IF(H19<>0,J19/H19,0) -> 0 | M19: =IF(L19<>0,N19/L19,0) -> 0 | P19: =J19+N19 -> 0
E20: 0 | I20: 0 | M20: 0 | P20: 0
E21: 0 | I21: 0 | M21: 0 | P21: 0
E22: 0 | I22: 0 | M22: 0 | P22: 0
E23: 0 | I23: 0 | M23: 0 | P23: 0
E24: 0 | I24: 0 | M24: 0 | P24: 0
E25: 0 | I25: 0 | M25: 0 | P25: 0
E26: 0 | I26: 0 | M26: 0 | P26: 0
E27: 0 | I27: 0 | M27: 0 | P27: 0
E28: 0 | I28: 0 | M28: 0 | P28: 0
E29: 0 | I29: 0 | M29: 0 | P29: 0
E30: 0 | I30: 0 | M30: 0 | P30: 0
D32: =SUM(D19:D30) -> 0 | E32: =IF(D32<>0,F32/D32,0) -> 0 | F32: =SUM(F19:F30) -> 0 | H32: =SUM(H19:H30) -> 0 | I32: =IF(H32<>0,J32/H32,0) -> 0 | J32: =SUM(J19:J30) -> 0 | L32: =SUM(L19:L30) -> 0 | M32: =IF(L32<>0,N32/L32,0) -> 0 | N32: =SUM(N19:N30) -> 0 | P32: =SUM(P19:P30) -> 0
D38: 83718.39 | E38: =IF(D38<>0,F38/D38,0) -> 3.230000123 | F38: 270410.41 | H38: 43137.05 | I38: =IF(H38<>0,J38/H38,0) -> 0.649999942 | J38: 28039.08 | L38: 83718.39 | M38: =IF(L38<>0,N38/L38,0) -> 1.619999978 | N38: 135623.79 | P38: =J38+N38 -> 163662.87
D39: 77247.7 | E39: =IF(D39<>0,F39/D39,0) -> 3.229999987 | F39: 249510.07 | H39: 40405.77 | I39: 0.6499999876 | J39: 26263.75 | L39: 79705.46 | M39: 1.62000006 | N39: 129122.85 | P39: =J39+N39 -> 155386.6
D40: 70180.48 | E40: 3.229999994 | F40: 226682.95 | H40: 37812.1 | I40: 0.65 | J40: 24577.865 | L40: 73776.98 | M40: 1.62 | N40: 119518.7076 | P40: 144096.5726
D41: 66378.85 | E41: 3.230000068 | F41: 214403.69 | H41: 37014.82 | I41: 0.649999919 | J41: 24059.63 | L41: 69130.01 | M41: 1.620000055 | N41: 111990.62 | P41: 136050.25
D42: 90135.47 | E42: 3.412100031 | F42: 307551.24 | H42: 48075.1 | I42: 0.7878999732 | J42: 37878.37 | L42: 91000.59 | M42: 1.801799966 | N42: 163964.86 | P42: 201843.23
D43: 101563.6 | E43: 3.412100004 | F43: 346545.16 | H43: 52383.16 | I43: 0.7878999663 | J43: 41272.69 | L43: 102818.53 | M43: 1.801800026 | N43: 185258.43 | P43: 226531.12
D44: 130270.95 | E44: 3.412100012 | F44: 444497.51 | H44: 61947.6 | I44: 0.7878999348 | J44: 48808.51 | L44: 131667.12 | M44: 1.801800024 | N44: 237237.82 | P44: 286046.33
D45: 112716.18 | E45: 3.41210002 | F45: 384598.88 | H45: 59497.92 | I45: 0.7878999804 | J45: 46878.41 | L45: 116957.91 | M45: 1.801799981 | N45: 210734.76 | P45: 257613.17
D46: 122173 | E46: 3.412099973 | F46: 416866.49 | H46: 62777.31 | I46: 0.7878999594 | J46: 49462.24 | L46: 123914.04 | M46: 1.801799941 | N46: 223268.31 | P46: 272730.55
D47: 67503.27 | E47: 3.412100036 | F47: 230327.91 | H47: 31002.86 | I47: 0.7878998905 | J47: 24427.15 | L47: 69822.25 | M47: 1.801799999 | N47: 125805.73 | P47: 150232.88
D48: =54111.4+18545.56 -> 72656.96 | E48: 3.412100093 | F48: =184633.51+63279.31 -> 247912.82 | H48: =13270.42+18545.56 -> 31815.98 | I48: 0.7878999798 | J48: =10455.76+14612.05 -> 25067.81 | L48: =55181.78+18545.56 -> 73727.34 | M48: 1.801799984 | N48: =99426.53+33415.39 -> 132841.92 | P48: 157909.73
D49: =55675.32+18925.19 -> 74600.51 | E49: 3.412099998 | F49: =189969.76+64574.64 -> 254544.4 | H49: =13846+18925.19 -> 32771.19 | I49: 0.7878999817 | J49: =10909.26+14911.16 -> 25820.42 | L49: =56223.33+18925.19 -> 75148.52 | M49: 1.801800035 | N49: =101303.196+34099.41 -> 135402.606 | P49: 161223.026
D51: =SUM(D38:D49) -> 1069145.36 | E51: =IF(D51<>0,F51/D51,0) -> 3.361424615 | F51: =SUM(F38:F49) -> 3593851.53 | H51: =SUM(H38:H49) -> 538640.86 | I51: =IF(H51<>0,J51/H51,0) -> 0.7473549723 | J51: =SUM(J38:J49) -> 402555.925 | L51: =SUM(L38:L49) -> 1091387.14 | M51: =IF(L51<>0,N51/L51,0) -> 1.750772328 | N51: =SUM(N38:N49) -> 1910770.404 | P51: =SUM(P38:P49) -> 2313326.329
E57: =IF(D57<>0,F57/D57,0) -> 0 | I57: =IF(H57<>0,J57/H57,0) -> 0 | M57: =IF(L57<>0,N57/L57,0) -> 0 | P57: =J57+N57 -> 0
E58: 0 | I58: 0 | M58: 0 | P58: 0
E59: 0 | I59: 0 | M59: 0 | P59: 0
E60: 0 | I60: 0 | M60: 0 | P60: 0
E61: 0 | I61: 0 | M61: 0 | P61: 0
E62: 0 | I62: 0 | M62: 0 | P62: 0
E63: 0 | I63: 0 | M63: 0 | P63: 0
E64: 0 | I64: 0 | M64: 0 | P64: 0
E65: 0 | I65: 0 | M65: 0 | P65: 0
E66: 0 | I66: 0 | M66: 0 | P66: 0
E67: 0 | I67: 0 | M67: 0 | P67: 0
E68: 0 | I68: 0 | M68: 0 | P68: 0
D70: =SUM(D57:D68) -> 0 | E70: =IF(D70<>0,F70/D70,0) -> 0 | F70: =SUM(F57:F68) -> 0 | H70: =SUM(H57:H68) -> 0 | I70: =IF(H70<>0,J70/H70,0) -> 0 | J70: =SUM(J57:J68) -> 0 | L70: =SUM(L57:L68) -> 0 | M70: =IF(L70<>0,N70/L70,0) -> 0 | N70: =SUM(N57:N68) -> 0 | P70: =SUM(P57:P68) -> 0
E76: =IF(D76<>0,F76/D76,0) -> 0 | I76: =IF(H76<>0,J76/H76,0) -> 0 | M76: =IF(L76<>0,N76/L76,0) -> 0 | P76: =J76+N76 -> 0
E77: 0 | I77: 0 | M77: 0 | P77: 0
E78: 0 | I78: 0 | M78: 0 | P78: 0
E79: 0 | I79: 0 | M79: 0 | P79: 0
E80: 0 | I80: 0 | M80: 0 | P80: 0
E81: 0 | I81: 0 | M81: 0 | P81: 0
E82: 0 | I82: 0 | M82: 0 | P82: 0
E83: 0 | I83: 0 | M83: 0 | P83: 0
E84: 0 | I84: 0 | M84: 0 | P84: 0
E85: 0 | I85: 0 | M85: 0 | P85: 0
E86: 0 | I86: 0 | M86: 0 | P86: 0
E87: 0 | I87: 0 | M87: 0 | P87: 0
D89: =SUM(D76:D87) -> 0 | E89: =IF(D89<>0,F89/D89,0) -> 0 | F89: =SUM(F76:F87) -> 0 | H89: =SUM(H76:H87) -> 0 | I89: =IF(H89<>0,J89/H89,0) -> 0 | J89: =SUM(J76:J87) -> 0 | L89: =SUM(L76:L87) -> 0 | M89: =IF(L89<>0,N89/L89,0) -> 0 | N89: =SUM(N76:N87) -> 0 | P89: =SUM(P76:P87) -> 0
D95: =D19+D38+D57+D76 -> 83718.39 | E95: =IF(D95<>0,F95/D95,0) -> 3.230000123 | F95: =F19+F38+F57+F76 -> 270410.41 | H95: =H19+H38+H57+H76 -> 43137.05 | I95: =IF(H95<>0,J95/H95,0) -> 0.649999942 | J95: =J19+J38+J57+J76 -> 28039.08 | L95: =L19+L38+L57+L76 -> 83718.39 | M95: =IF(L95<>0,N95/L95,0) -> 1.619999978 | N95: =N19+N38+N57+N76 -> 135623.79 | P95: =J95+N95 -> 163662.87
D96: =D20+D39+D58+D77 -> 77247.7 | E96: 3.229999987 | F96: =F20+F39+F58+F77 -> 249510.07 | H96: =H20+H39+H58+H77 -> 40405.77 | I96: 0.6499999876 | J96: =J20+J39+J58+J77 -> 26263.75 | L96: =L20+L39+L58+L77 -> 79705.46 | M96: 1.62000006 | N96: =N20+N39+N58+N77 -> 129122.85 | P96: 155386.6
D97: 70180.48 | E97: 3.229999994 | F97: 226682.95 | H97: 37812.1 | I97: 0.65 | J97: 24577.865 | L97: 73776.98 | M97: 1.62 | N97: 119518.7076 | P97: 144096.5726
D98: 66378.85 | E98: 3.230000068 | F98: 214403.69 | H98: 37014.82 | I98: 0.649999919 | J98: 24059.63 | L98: 69130.01 | M98: 1.620000055 | N98: 111990.62 | P98: 136050.25
D99: 90135.47 | E99: 3.412100031 | F99: 307551.24 | H99: 48075.1 | I99: 0.7878999732 | J99: 37878.37 | L99: 91000.59 | M99: 1.801799966 | N99: 163964.86 | P99: 201843.23
D100: 101563.6 | E100: 3.412100004 | F100: 346545.16 | H100: 52383.16 | I100: 0.7878999663 | J100: 41272.69 | L100: 102818.53 | M100: 1.801800026 | N100: 185258.43 | P100: 226531.12
D101: 130270.95 | E101: 3.412100012 | F101: 444497.51 | H101: 61947.6 | I101: 0.7878999348 | J101: 48808.51 | L101: 131667.12 | M101: 1.801800024 | N101: 237237.82 | P101: 286046.33
D102: 112716.18 | E102: 3.41210002 | F102: 384598.88 | H102: 59497.92 | I102: 0.7878999804 | J102: 46878.41 | L102: 116957.91 | M102: 1.801799981 | N102: 210734.76 | P102: 257613.17
D103: 122173 | E103: 3.412099973 | F103: 416866.49 | H103: 62777.31 | I103: 0.7878999594 | J103: 49462.24 | L103: 123914.04 | M103: 1.801799941 | N103: 223268.31 | P103: 272730.55
D104: 67503.27 | E104: 3.412100036 | F104: 230327.91 | H104: 31002.86 | I104: 0.7878998905 | J104: 24427.15 | L104: 69822.25 | M104: 1.801799999 | N104: 125805.73 | P104: 150232.88
D105: 72656.96 | E105: 3.412100093 | F105: 247912.82 | H105: 31815.98 | I105: 0.7878999798 | J105: 25067.81 | L105: 73727.34 | M105: 1.801799984 | N105: 132841.92 | P105: 157909.73
D106: 74600.51 | E106: 3.412099998 | F106: 254544.4 | H106: 32771.19 | I106: 0.7878999817 | J106: 25820.42 | L106: 75148.52 | M106: 1.801800035 | N106: 135402.606 | P106: 161223.026
D108: =SUM(D95:D106) -> 1069145.36 | E108: =IF(D108<>0,F108/D108,0) -> 3.361424615 | F108: =SUM(F95:F106) -> 3593851.53 | H108: =SUM(H95:H106) -> 538640.86 | I108: =IF(H108<>0,J108/H108,0) -> 0.7473549723 | J108: =SUM(J95:J106) -> 402555.925 | L108: =SUM(L95:L106) -> 1091387.14 | M108: =IF(L108<>0,N108/L108,0) -> 1.750772328 | N108: =SUM(N95:N106) -> 1910770.404 | P108: =SUM(P95:P106) -> 2313326.329
P110: ='11. RTSR - UTRs & Sub-Tx'!E74 -> 0
P112: =P108+P110 -> 2313326.329

Sheet 13. RTSR - Current Wholesale
D20: ='12. RTSR - Historical Wholesale'!D19 -> 0 | E20: ='11. RTSR - UTRs & Sub-Tx'!H22 -> 3.66 | F20: =D20*E20 -> 0 | H20: ='12. RTSR - Historical Wholesale'!H19 -> 0 | I20: ='11. RTSR - UTRs & Sub-Tx'!H24 -> 0.87 | J20: =H20*I20 -> 0 | L20: ='12. RTSR - Historical Wholesale'!L19 -> 0 | M20: ='11. RTSR - UTRs & Sub-Tx'!H26 -> 2.02 | N20: =L20*M20 -> 0 | P20: =J20+N20 -> 0
D21: ='12. RTSR - Historical Wholesale'!D20 -> 0 | E21: =E20 -> 3.66 | F21: =D21*E21 -> 0 | H21: ='12. RTSR - Historical Wholesale'!H20 -> 0 | I21: =I20 -> 0.87 | J21: =H21*I21 -> 0 | L21: ='12. RTSR - Historical Wholesale'!L20 -> 0 | M21: =M20 -> 2.02 | N21: =L21*M21 -> 0 | P21: 0
D22: ='12. RTSR - Historical Wholesale'!D21 -> 0 | E22: =E21 -> 3.66 | F22: 0 | H22: ='12. RTSR - Historical Wholesale'!H21 -> 0 | I22: =I21 -> 0.87 | J22: 0 | L22: ='12. RTSR - Historical Wholesale'!L21 -> 0 | M22: =M21 -> 2.02 | N22: 0 | P22: 0
D23: ='12. RTSR - Historical Wholesale'!D22 -> 0 | E23: 3.66 | F23: 0 | H23: ='12. RTSR - Historical Wholesale'!H22 -> 0 | I23: 0.87 | J23: 0 | L23: ='12. RTSR - Historical Wholesale'!L22 -> 0 | M23: 2.02 | N23: 0 | P23: 0
D24: ='12. RTSR - Historical Wholesale'!D23 -> 0 | E24: 3.66 | F24: 0 | H24: ='12. RTSR - Historical Wholesale'!H23 -> 0 | I24: 0.87 | J24: 0 | L24: ='12. RTSR - Historical Wholesale'!L23 -> 0 | M24: 2.02 | N24: 0 | P24: 0
D25: ='12. RTSR - Historical Wholesale'!D24 -> 0 | E25: 3.66 | F25: 0 | H25: ='12. RTSR - Historical Wholesale'!H24 -> 0 | I25: 0.87 | J25: 0 | L25: ='12. RTSR - Historical Wholesale'!L24 -> 0 | M25: 2.02 | N25: 0 | P25: 0
D26: ='12. RTSR - Historical Wholesale'!D25 -> 0 | E26: 3.66 | F26: 0 | H26: ='12. RTSR - Historical Wholesale'!H25 -> 0 | I26: 0.87 | J26: 0 | L26: ='12. RTSR - Historical Wholesale'!L25 -> 0 | M26: 2.02 | N26: 0 | P26: 0
D27: ='12. RTSR - Historical Wholesale'!D26 -> 0 | E27: 3.66 | F27: 0 | H27: ='12. RTSR - Historical Wholesale'!H26 -> 0 | I27: 0.87 | J27: 0 | L27: ='12. RTSR - Historical Wholesale'!L26 -> 0 | M27: 2.02 | N27: 0 | P27: 0
D28: ='12. RTSR - Historical Wholesale'!D27 -> 0 | E28: 3.66 | F28: 0 | H28: ='12. RTSR - Historical Wholesale'!H27 -> 0 | I28: 0.87 | J28: 0 | L28: ='12. RTSR - Historical Wholesale'!L27 -> 0 | M28: 2.02 | N28: 0 | P28: 0
D29: ='12. RTSR - Historical Wholesale'!D28 -> 0 | E29: 3.66 | F29: 0 | H29: ='12. RTSR - Historical Wholesale'!H28 -> 0 | I29: 0.87 | J29: 0 | L29: ='12. RTSR - Historical Wholesale'!L28 -> 0 | M29: 2.02 | N29: 0 | P29: 0
D30: ='12. RTSR - Historical Wholesale'!D29 -> 0 | E30: 3.66 | F30: 0 | H30: ='12. RTSR - Historical Wholesale'!H29 -> 0 | I30: 0.87 | J30: 0 | L30: ='12. RTSR - Historical Wholesale'!L29 -> 0 | M30: 2.02 | N30: 0 | P30: 0
D31: ='12. RTSR - Historical Wholesale'!D30 -> 0 | E31: 3.66 | F31: 0 | H31: ='12. RTSR - Historical Wholesale'!H30 -> 0 | I31: 0.87 | J31: 0 | L31: ='12. RTSR - Historical Wholesale'!L30 -> 0 | M31: 2.02 | N31: 0 | P31: 0
D33: =SUM(D20:D31) -> 0 | E33: =IF(D33<>0,F33/D33,0) -> 0 | F33: =SUM(F20:F31) -> 0 | H33: =SUM(H20:H31) -> 0 | I33: =IF(H33<>0,J33/H33,0) -> 0 | J33: =SUM(J20:J31) -> 0 | L33: =SUM(L20:L31) -> 0 | M33: =IF(L33<>0,N33/L33,0) -> 0 | N33: =SUM(N20:N31) -> 0 | P33: =SUM(P20:P31) -> 0
D39: ='12. RTSR - Historical Wholesale'!D38 -> 83718.39 | E39: ='11. RTSR - UTRs & Sub-Tx'!F35 -> 3.4121 | F39: =D39*E39 -> 285655.5185 | H39: ='12. RTSR - Historical Wholesale'!H38 -> 43137.05 | I39: ='11. RTSR - UTRs & Sub-Tx'!F37 -> 0.7879 | J39: =H39*I39 -> 33987.6817 | L39: ='12. RTSR - Historical Wholesale'!L38 -> 83718.39 | M39: ='11. RTSR - UTRs & Sub-Tx'!F39 -> 1.8018 | N39: =L39*M39 -> 150843.7951 | P39: =J39+N39 -> 184831.4768
D40: ='12. RTSR - Historical Wholesale'!D39 -> 77247.7 | E40: ='11. RTSR - UTRs & Sub-Tx'!H35 -> 3.3396 | F40: =D40*E40 -> 257976.4189 | H40: ='12. RTSR - Historical Wholesale'!H39 -> 40405.77 | I40: ='11. RTSR - UTRs & Sub-Tx'!H37 -> 0.7791 | J40: =H40*I40 -> 31480.13541 | L40: ='12. RTSR - Historical Wholesale'!L39 -> 79705.46 | M40: ='11. RTSR - UTRs & Sub-Tx'!H39 -> 1.7713 | N40: =L40*M40 -> 141182.2813 | P40: 172662.4167
D41: ='12. RTSR - Historical Wholesale'!D40 -> 70180.48 | E41: =E40 -> 3.3396 | F41: 234374.731 | H41: ='12. RTSR - Historical Wholesale'!H40 -> 37812.1 | I41: =I40 -> 0.7791 | J41: 29459.40711 | L41: ='12. RTSR - Historical Wholesale'!L40 -> 73776.98 | M41: =M40 -> 1.7713 | N41: 130681.1647 | P41: 160140.5718
D42: ='12. RTSR - Historical Wholesale'!D41 -> 66378.85 | E42: 3.3396 | F42: 221678.8075 | H42: ='12. RTSR - Historical Wholesale'!H41 -> 37014.82 | I42: 0.7791 | J42: 28838.24626 | L42: ='12. RTSR - Historical Wholesale'!L41 -> 69130.01 | M42: =M41 -> 1.7713 | N42: 122449.9867 | P42: 151288.233
D43: ='12. RTSR - Historical Wholesale'!D42 -> 90135.47 | E43: 3.3396 | F43: 301016.4156 | H43: ='12. RTSR - Historical Wholesale'!H42 -> 48075.1 | I43: 0.7791 | J43: 37455.31041 | L43: ='12. RTSR - Historical Wholesale'!L42 -> 91000.59 | M43: 1.7713 | N43: 161189.3451 | P43: 198644.6555
D44: ='12. RTSR - Historical Wholesale'!D43 -> 101563.6 | E44: 3.3396 | F44: 339181.7986 | H44: ='12. RTSR - Historical Wholesale'!H43 -> 52383.16 | I44: 0.7791 | J44: 40811.71996 | L44: ='12. RTSR - Historical Wholesale'!L43 -> 102818.53 | M44: 1.7713 | N44: 182122.4622 | P44: 222934.1821
D45: ='12. RTSR - Historical Wholesale'!D44 -> 130270.95 | E45: 3.3396 | F45: 435052.8646 | H45: ='12. RTSR - Historical Wholesale'!H44 -> 61947.6 | I45: 0.7791 | J45: 48263.37516 | L45: ='12. RTSR - Historical Wholesale'!L44 -> 131667.12 | M45: 1.7713 | N45: 233221.9697 | P45: 281485.3448
D46: ='12. RTSR - Historical Wholesale'!D45 -> 112716.18 | E46: 3.3396 | F46: 376426.9547 | H46: ='12. RTSR - Historical Wholesale'!H45 -> 59497.92 | I46: 0.7791 | J46: 46354.82947 | L46: ='12. RTSR - Historical Wholesale'!L45 -> 116957.91 | M46: 1.7713 | N46: 207167.546 | P46: 253522.3755
D47: ='12. RTSR - Historical Wholesale'!D46 -> 122173 | E47: 3.3396 | F47: 408008.9508 | H47: ='12. RTSR - Historical Wholesale'!H46 -> 62777.31 | I47: 0.7791 | J47: 48909.80222 | L47: ='12. RTSR - Historical Wholesale'!L46 -> 123914.04 | M47: 1.7713 | N47: 219488.9391 | P47: 268398.7413
D48: ='12. RTSR - Historical Wholesale'!D47 -> 67503.27 | E48: 3.3396 | F48: 225433.9205 | H48: ='12. RTSR - Historical Wholesale'!H47 -> 31002.86 | I48: 0.7791 | J48: 24154.32823 | L48: ='12. RTSR - Historical Wholesale'!L47 -> 69822.25 | M48: 1.7713 | N48: 123676.1514 | P48: 147830.4797
D49: ='12. RTSR - Historical Wholesale'!D48 -> 72656.96 | E49: 3.3396 | F49: 242645.1836 | H49: ='12. RTSR - Historical Wholesale'!H48 -> 31815.98 | I49: 0.7791 | J49: 24787.83002 | L49: ='12. RTSR - Historical Wholesale'!L48 -> 73727.34 | M49: 1.7713 | N49: 130593.2373 | P49: 155381.0674
D50: ='12. RTSR - Historical Wholesale'!D49 -> 74600.51 | E50: 3.3396 | F50: 249135.8632 | H50: ='12. RTSR - Historical Wholesale'!H49 -> 32771.19 | I50: 0.7791 | J50: 25532.03413 | L50: ='12. RTSR - Historical Wholesale'!L49 -> 75148.52 | M50: 1.7713 | N50: 133110.5735 | P50: 158642.6076
D52: =SUM(D39:D50) -> 1069145.36 | E52: =IF(D52<>0,F52/D52,0) -> 3.345277042 | F52: =SUM(F39:F50) -> 3576587.428 | H52: =SUM(H39:H50) -> 538640.86 | I52: =IF(H52<>0,J52/H52,0) -> 0.7798047479 | J52: =SUM(J39:J50) -> 420034.7001 | L52: =SUM(L39:L50) -> 1091387.14 | M52: =IF(L52<>0,N52/L52,0) -> 1.773639601 | N52: =SUM(N39:N50) -> 1935727.452 | P52: =SUM(P39:P50) -> 2355762.152
B54: ='12. RTSR - Historical Wholesale'!B53 -> Add Extra Host Here (I)
D58: ='12. RTSR - Historical Wholesale'!D57 -> 0 | E58: ='11. RTSR - UTRs & Sub-Tx'!H50 -> 0 | F58: =D58*E58 -> 0 | H58: ='12. RTSR - Historical Wholesale'!H57 -> 0 | I58: ='11. RTSR - UTRs & Sub-Tx'!H52 -> 0 | J58: =H58*I58 -> 0 | L58: ='12. RTSR - Historical Wholesale'!L57 -> 0 | M58: ='11. RTSR - UTRs & Sub-Tx'!H54 -> 0 | N58: =L58*M58 -> 0 | P58: =J58+N58 -> 0
D59: ='12. RTSR - Historical Wholesale'!D58 -> 0 | E59: =E58 -> 0 | F59: =D59*E59 -> 0 | H59: ='12. RTSR - Historical Wholesale'!H58 -> 0 | I59: =I58 -> 0 | J59: =H59*I59 -> 0 | L59: ='12. RTSR - Historical Wholesale'!L58 -> 0 | M59: =M58 -> 0 | N59: =L59*M59 -> 0 | P59: 0
D60: ='12. RTSR - Historical Wholesale'!D59 -> 0 | E60: =E59 -> 0 | F60: 0 | H60: ='12. RTSR - Historical Wholesale'!H59 -> 0 | I60: =I59 -> 0 | J60: 0 | L60: ='12. RTSR - Historical Wholesale'!L59 -> 0 | M60: =M59 -> 0 | N60: 0 | P60: 0
D61: ='12. RTSR - Historical Wholesale'!D60 -> 0 | E61: 0 | F61: 0 | H61: ='12. RTSR - Historical Wholesale'!H60 -> 0 | I61: 0 | J61: 0 | L61: ='12. RTSR - Historical Wholesale'!L60 -> 0 | M61: =M60 -> 0 | N61: 0 | P61: 0
D62: ='12. RTSR - Historical Wholesale'!D61 -> 0 | E62: 0 | F62: 0 | H62: ='12. RTSR - Historical Wholesale'!H61 -> 0 | I62: 0 | J62: 0 | L62: ='12. RTSR - Historical Wholesale'!L61 -> 0 | M62: 0 | N62: 0 | P62: 0
D63: ='12. RTSR - Historical Wholesale'!D62 -> 0 | E63: 0 | F63: 0 | H63: ='12. RTSR - Historical Wholesale'!H62 -> 0 | I63: 0 | J63: 0 | L63: ='12. RTSR - Historical Wholesale'!L62 -> 0 | M63: 0 | N63: 0 | P63: 0
D64: ='12. RTSR - Historical Wholesale'!D63 -> 0 | E64: 0 | F64: 0 | H64: ='12. RTSR - Historical Wholesale'!H63 -> 0 | I64: 0 | J64: 0 | L64: ='12. RTSR - Historical Wholesale'!L63 -> 0 | M64: 0 | N64: 0 | P64: 0
D65: ='12. RTSR - Historical Wholesale'!D64 -> 0 | E65: 0 | F65: 0 | H65: ='12. RTSR - Historical Wholesale'!H64 -> 0 | I65: 0 | J65: 0 | L65: ='12. RTSR - Historical Wholesale'!L64 -> 0 | M65: 0 | N65: 0 | P65: 0
D66: ='12. RTSR - Historical Wholesale'!D65 -> 0 | E66: 0 | F66: 0 | H66: ='12. RTSR - Historical Wholesale'!H65 -> 0 | I66: 0 | J66: 0 | L66: ='12. RTSR - Historical Wholesale'!L65 -> 0 | M66: 0 | N66: 0 | P66: 0
D67: ='12. RTSR - Historical Wholesale'!D66 -> 0 | E67: 0 | F67: 0 | H67: ='12. RTSR - Historical Wholesale'!H66 -> 0 | I67: 0 | J67: 0 | L67: ='12. RTSR - Historical Wholesale'!L66 -> 0 | M67: 0 | N67: 0 | P67: 0
D68: ='12. RTSR - Historical Wholesale'!D67 -> 0 | E68: 0 | F68: 0 | H68: ='12. RTSR - Historical Wholesale'!H67 -> 0 | I68: 0 | J68: 0 | L68: ='12. RTSR - Historical Wholesale'!L67 -> 0 | M68: 0 | N68: 0 | P68: 0
D69: ='12. RTSR - Historical Wholesale'!D68 -> 0 | E69: 0 | F69: 0 | H69: ='12. RTSR - Historical Wholesale'!H68 -> 0 | I69: 0 | J69: 0 | L69: ='12. RTSR - Historical Wholesale'!L68 -> 0 | M69: 0 | N69: 0 | P69: 0
D71: =SUM(D58:D69) -> 0 | E71: =IF(D71<>0,F71/D71,0) -> 0 | F71: =SUM(F58:F69) -> 0 | H71: =SUM(H58:H69) -> 0 | I71: =IF(H71<>0,J71/H71,0) -> 0 | J71: =SUM(J58:J69) -> 0 | L71: =SUM(L58:L69) -> 0 | M71: =IF(L71<>0,N71/L71,0) -> 0 | N71: =SUM(N58:N69) -> 0 | P71: =SUM(P58:P69) -> 0
B73: ='12. RTSR - Historical Wholesale'!B72 -> Add Extra Host Here (II)
D77: ='12. RTSR - Historical Wholesale'!D76 -> 0 | E77: ='11. RTSR - UTRs & Sub-Tx'!H65 -> 0 | F77: =D77*E77 -> 0 | H77: ='12. RTSR - Historical Wholesale'!H76 -> 0 | I77: ='11. RTSR - UTRs & Sub-Tx'!H67 -> 0 | J77: =H77*I77 -> 0 | L77: ='12. RTSR - Historical Wholesale'!L76 -> 0 | M77: ='11. RTSR - UTRs & Sub-Tx'!H69 -> 0 | N77: =L77*M77 -> 0 | P77: =J77+N77 -> 0
D78: ='12. RTSR - Historical Wholesale'!D77 -> 0 | E78: =E77 -> 0 | F78: =D78*E78 -> 0 | H78: ='12. RTSR - Historical Wholesale'!H77 -> 0 | I78: =I77 -> 0 | J78: =H78*I78 -> 0 | L78: ='12. RTSR - Historical Wholesale'!L77 -> 0 | M78: =M77 -> 0 | N78: =L78*M78 -> 0 | P78: 0
D79: ='12. RTSR - Historical Wholesale'!D78 -> 0 | E79: =E78 -> 0 | F79: 0 | H79: ='12. RTSR - Historical Wholesale'!H78 -> 0 | I79: =I78 -> 0 | J79: 0 | L79: ='12. RTSR - Historical Wholesale'!L78 -> 0 | M79: =M78 -> 0 | N79: 0 | P79: 0
D80: ='12. RTSR - Historical Wholesale'!D79 -> 0 | E80: 0 | F80: 0 | H80: ='12. RTSR - Historical Wholesale'!H79 -> 0 | I80: 0 | J80: 0 | L80: ='12. RTSR - Historical Wholesale'!L79 -> 0 | M80: =M79 -> 0 | N80: 0 | P80: 0
D81: ='12. RTSR - Historical Wholesale'!D80 -> 0 | E81: 0 | F81: 0 | H81: ='12. RTSR - Historical Wholesale'!H80 -> 0 | I81: 0 | J81: 0 | L81: ='12. RTSR - Historical Wholesale'!L80 -> 0 | M81: 0 | N81: 0 | P81: 0
D82: ='12. RTSR - Historical Wholesale'!D81 -> 0 | E82: 0 | F82: 0 | H82: ='12. RTSR - Historical Wholesale'!H81 -> 0 | I82: 0 | J82: 0 | L82: ='12. RTSR - Historical Wholesale'!L81 -> 0 | M82: 0 | N82: 0 | P82: 0
D83: ='12. RTSR - Historical Wholesale'!D82 -> 0 | E83: 0 | F83: 0 | H83: ='12. RTSR - Historical Wholesale'!H82 -> 0 | I83: 0 | J83: 0 | L83: ='12. RTSR - Historical Wholesale'!L82 -> 0 | M83: 0 | N83: 0 | P83: 0
D84: ='12. RTSR - Historical Wholesale'!D83 -> 0 | E84: 0 | F84: 0 | H84: ='12. RTSR - Historical Wholesale'!H83 -> 0 | I84: 0 | J84: 0 | L84: ='12. RTSR - Historical Wholesale'!L83 -> 0 | M84: 0 | N84: 0 | P84: 0
D85: ='12. RTSR - Historical Wholesale'!D84 -> 0 | E85: 0 | F85: 0 | H85: ='12. RTSR - Historical Wholesale'!H84 -> 0 | I85: 0 | J85: 0 | L85: ='12. RTSR - Historical Wholesale'!L84 -> 0 | M85: 0 | N85: 0 | P85: 0
D86: ='12. RTSR - Historical Wholesale'!D85 -> 0 | E86: 0 | F86: 0 | H86: ='12. RTSR - Historical Wholesale'!H85 -> 0 | I86: 0 | J86: 0 | L86: ='12. RTSR - Historical Wholesale'!L85 -> 0 | M86: 0 | N86: 0 | P86: 0
D87: ='12. RTSR - Historical Wholesale'!D86 -> 0 | E87: 0 | F87: 0 | H87: ='12. RTSR - Historical Wholesale'!H86 -> 0 | I87: 0 | J87: 0 | L87: ='12. RTSR - Historical Wholesale'!L86 -> 0 | M87: 0 | N87: 0 | P87: 0
D88: ='12. RTSR - Historical Wholesale'!D87 -> 0 | E88: 0 | F88: 0 | H88: ='12. RTSR - Historical Wholesale'!H87 -> 0 | I88: 0 | J88: 0 | L88: ='12. RTSR - Historical Wholesale'!L87 -> 0 | M88: 0 | N88: 0 | P88: 0
D90: =SUM(D77:D88) -> 0 | E90: =IF(D90<>0,F90/D90,0) -> 0 | F90: =SUM(F77:F88) -> 0 | H90: =SUM(H77:H88) -> 0 | I90: =IF(H90<>0,J90/H90,0) -> 0 | J90: =SUM(J77:J88) -> 0 | L90: =SUM(L77:L88) -> 0 | M90: =IF(L90<>0,N90/L90,0) -> 0 | N90: =SUM(N77:N88) -> 0 | P90: =SUM(P77:P88) -> 0
D96: =D20+D39+D58+D77 -> 83718.39 | E96: =IF(D96<>0,F96/D96,0) -> 3.4121 | F96: =F20+F39+F58+F77 -> 285655.5185 | H96: =H20+H39+H58+H77 -> 43137.05 | I96: =IF(H96<>0,J96/H96,0) -> 0.7879 | J96: =J20+J39+J58+J77 -> 33987.6817 | L96: =L20+L39+L58+L77 -> 83718.39 | M96: =IF(L96<>0,N96/L96,0) -> 1.8018 | N96: =N20+N39+N58+N77 -> 150843.7951 | P96: =J96+N96 -> 184831.4768
D97: =D21+D40+D59+D78 -> 77247.7 | E97: 3.3396 | F97: =F21+F40+F59+F78 -> 257976.4189 | H97: =H21+H40+H59+H78 -> 40405.77 | I97: 0.7791 | J97: =J21+J40+J59+J78 -> 31480.13541 | L97: =L21+L40+L59+L78 -> 79705.46 | M97: 1.7713 | N97: =N21+N40+N59+N78 -> 141182.2813 | P97: 172662.4167
D98: 70180.48 | E98: 3.3396 | F98: 234374.731 | H98: 37812.1 | I98: 0.7791 | J98: 29459.40711 | L98: 73776.98 | M98: 1.7713 | N98: 130681.1647 | P98: 160140.5718
D99: 66378.85 | E99: 3.3396 | F99: 221678.8075 | H99: 37014.82 | I99: 0.7791 | J99: 28838.24626 | L99: 69130.01 | M99: 1.7713 | N99: 122449.9867 | P99: 151288.233
D100: 90135.47 | E100: 3.3396 | F100: 301016.4156 | H100: 48075.1 | I100: 0.7791 | J100: 37455.31041 | L100: 91000.59 | M100: 1.7713 | N100: 161189.3451 | P100: 198644.6555
D101: 101563.6 | E101: 3.3396 | F101: 339181.7986 | H101: 52383.16 | I101: 0.7791 | J101: 40811.71996 | L101: 102818.53 | M101: 1.7713 | N101: 182122.4622 | P101: 222934.1821
D102: 130270.95 | E102: 3.3396 | F102: 435052.8646 | H102: 61947.6 | I102: 0.7791 | J102: 48263.37516 | L102: 131667.12 | M102: 1.7713 | N102: 233221.9697 | P102: 281485.3448
D103: 112716.18 | E103: 3.3396 | F103: 376426.9547 | H103: 59497.92 | I103: 0.7791 | J103: 46354.82947 | L103: 116957.91 | M103: 1.7713 | N103: 207167.546 | P103: 253522.3755
D104: 122173 | E104: 3.3396 | F104: 408008.9508 | H104: 62777.31 | I104: 0.7791 | J104: 48909.80222 | L104: 123914.04 | M104: 1.7713 | N104: 219488.9391 | P104: 268398.7413
D105: 67503.27 | E105: 3.3396 | F105: 225433.9205 | H105: 31002.86 | I105: 0.7791 | J105: 24154.32823 | L105: 69822.25 | M105: 1.7713 | N105: 123676.1514 | P105: 147830.4797
D106: 72656.96 | E106: 3.3396 | F106: 242645.1836 | H106: 31815.98 | I106: 0.7791 | J106: 24787.83002 | L106: 73727.34 | M106: 1.7713 | N106: 130593.2373 | P106: 155381.0674
D107: 74600.51 | E107: 3.3396 | F107: 249135.8632 | H107: 32771.19 | I107: 0.7791 | J107: 25532.03413 | L107: 75148.52 | M107: 1.7713 | N107: 133110.5735 | P107: 158642.6076
D109: =SUM(D96:D107) -> 1069145.36 | E109: =IF(D109<>0,F109/D109,0) -> 3.345277042 | F109: =SUM(F96:F107) -> 3576587.428 | H109: =SUM(H96:H107) -> 538640.86 | I109: =IF(H109<>0,J109/H109,0) -> 0.7798047479 | J109: =SUM(J96:J107) -> 420034.7001 | L109: =SUM(L96:L107) -> 1091387.14 | M109: =IF(L109<>0,N109/L109,0) -> 1.773639601 | N109: =SUM(N96:N107) -> 1935727.452 | P109: =SUM(P96:P107) -> 2355762.152
P111: ='11. RTSR - UTRs & Sub-Tx'!H74 -> 0
P113: =P109+P111 -> 2355762.152

Sheet 14. RTSR - Forecast Wholesale
D20: ='12. RTSR - Historical Wholesale'!D19 -> 0 | E20: ='11. RTSR - UTRs & Sub-Tx'!J22 -> 3.66 | F20: =D20*E20 -> 0 | H20: ='12. RTSR - Historical Wholesale'!H19 -> 0 | I20: ='11. RTSR - UTRs & Sub-Tx'!J24 -> 0.87 | J20: =H20*I20 -> 0 | L20: ='12. RTSR - Historical Wholesale'!L19 -> 0 | M20: ='11. RTSR - UTRs & Sub-Tx'!J26 -> 2.02 | N20: =L20*M20 -> 0 | P20: =J20+N20 -> 0
D21: ='12. RTSR - Historical Wholesale'!D20 -> 0 | E21: =E20 -> 3.66 | F21: 0 | H21: ='12. RTSR - Historical Wholesale'!H20 -> 0 | I21: =I20 -> 0.87 | J21: 0 | L21: ='12. RTSR - Historical Wholesale'!L20 -> 0 | M21: =M20 -> 2.02 | N21: 0 | P21: 0
D22: ='12. RTSR - Historical Wholesale'!D21 -> 0 | E22: 3.66 | F22: 0 | H22: ='12. RTSR - Historical Wholesale'!H21 -> 0 | I22: 0.87 | J22: 0 | L22: ='12. RTSR - Historical Wholesale'!L21 -> 0 | M22: 2.02 | N22: 0 | P22: 0
D23: ='12. RTSR - Historical Wholesale'!D22 -> 0 | E23: 3.66 | F23: 0 | H23: ='12. RTSR - Historical Wholesale'!H22 -> 0 | I23: 0.87 | J23: 0 | L23: ='12. RTSR - Historical Wholesale'!L22 -> 0 | M23: 2.02 | N23: 0 | P23: 0
D24: ='12. RTSR - Historical Wholesale'!D23 -> 0 | E24: 3.66 | F24: 0 | H24: ='12. RTSR - Historical Wholesale'!H23 -> 0 | I24: 0.87 | J24: 0 | L24: ='12. RTSR - Historical Wholesale'!L23 -> 0 | M24: 2.02 | N24: 0 | P24: 0
D25: ='12. RTSR - Historical Wholesale'!D24 -> 0 | E25: 3.66 | F25: 0 | H25: ='12. RTSR - Historical Wholesale'!H24 -> 0 | I25: 0.87 | J25: 0 | L25: ='12. RTSR - Historical Wholesale'!L24 -> 0 | M25: 2.02 | N25: 0 | P25: 0
D26: ='12. RTSR - Historical Wholesale'!D25 -> 0 | E26: 3.66 | F26: 0 | H26: ='12. RTSR - Historical Wholesale'!H25 -> 0 | I26: 0.87 | J26: 0 | L26: ='12. RTSR - Historical Wholesale'!L25 -> 0 | M26: 2.02 | N26: 0 | P26: 0
D27: ='12. RTSR - Historical Wholesale'!D26 -> 0 | E27: 3.66 | F27: 0 | H27: ='12. RTSR - Historical Wholesale'!H26 -> 0 | I27: 0.87 | J27: 0 | L27: ='12. RTSR - Historical Wholesale'!L26 -> 0 | M27: 2.02 | N27: 0 | P27: 0
D28: ='12. RTSR - Historical Wholesale'!D27 -> 0 | E28: 3.66 | F28: 0 | H28: ='12. RTSR - Historical Wholesale'!H27 -> 0 | I28: 0.87 | J28: 0 | L28: ='12. RTSR - Historical Wholesale'!L27 -> 0 | M28: 2.02 | N28: 0 | P28: 0
D29: ='12. RTSR - Historical Wholesale'!D28 -> 0 | E29: 3.66 | F29: 0 | H29: ='12. RTSR - Historical Wholesale'!H28 -> 0 | I29: 0.87 | J29: 0 | L29: ='12. RTSR - Historical Wholesale'!L28 -> 0 | M29: 2.02 | N29: 0 | P29: 0
D30: ='12. RTSR - Historical Wholesale'!D29 -> 0 | E30: 3.66 | F30: 0 | H30: ='12. RTSR - Historical Wholesale'!H29 -> 0 | I30: 0.87 | J30: 0 | L30: ='12. RTSR - Historical Wholesale'!L29 -> 0 | M30: 2.02 | N30: 0 | P30: 0
D31: ='12. RTSR - Historical Wholesale'!D30 -> 0 | E31: 3.66 | F31: 0 | H31: ='12. RTSR - Historical Wholesale'!H30 -> 0 | I31: 0.87 | J31: 0 | L31: ='12. RTSR - Historical Wholesale'!L30 -> 0 | M31: 2.02 | N31: 0 | P31: 0
D33: =SUM(D20:D31) -> 0 | E33: =IF(D33<>0,F33/D33,0) -> 0 | F33: =SUM(F20:F31) -> 0 | H33: =SUM(H20:H31) -> 0 | I33: =IF(H33<>0,J33/H33,0) -> 0 | J33: =SUM(J20:J31) -> 0 | L33: =SUM(L20:L31) -> 0 | M33: =IF(L33<>0,N33/L33,0) -> 0 | N33: =SUM(N20:N31) -> 0 | P33: =SUM(P20:P31) -> 0
D39: ='12. RTSR - Historical Wholesale'!D38 -> 83718.39 | E39: ='11. RTSR - UTRs & Sub-Tx'!J35 -> 3.1942 | F39: =D39*E39 -> 267413.2813 | H39: ='12. RTSR - Historical Wholesale'!H38 -> 43137.05 | I39: ='11. RTSR - UTRs & Sub-Tx'!J37 -> 0.771 | J39: =H39*I39 -> 33258.66555 | L39: ='12. RTSR - Historical Wholesale'!L38 -> 83718.39 | M39: ='11. RTSR - UTRs & Sub-Tx'!J39 -> 1.7493 | N39: =L39*M39 -> 146448.5796 | P39: =J39+N39 -> 179707.2452
D40: ='12. RTSR - Historical Wholesale'!D39 -> 77247.7 | E40: =E39 -> 3.1942 | F40: 246744.6033 | H40: ='12. RTSR - Historical Wholesale'!H39 -> 40405.77 | I40: =I39 -> 0.771 | J40: 31152.84867 | L40: ='12. RTSR - Historical Wholesale'!L39 -> 79705.46 | M40: =M39 -> 1.7493 | N40: 139428.7612 | P40: 170581.6098
D41: ='12. RTSR - Historical Wholesale'!D40 -> 70180.48 | E41: 3.1942 | F41: 224170.4892 | H41: ='12. RTSR - Historical Wholesale'!H40 -> 37812.1 | I41: 0.771 | J41: 29153.1291 | L41: ='12. RTSR - Historical Wholesale'!L40 -> 73776.98 | M41: 1.7493 | N41: 129058.0711 | P41: 158211.2002
D42: ='12. RTSR - Historical Wholesale'!D41 -> 66378.85 | E42: 3.1942 | F42: 212027.3227 | H42: ='12. RTSR - Historical Wholesale'!H41 -> 37014.82 | I42: 0.771 | J42: 28538.42622 | L42: ='12. RTSR - Historical Wholesale'!L41 -> 69130.01 | M42: 1.7493 | N42: 120929.1265 | P42: 149467.5527
D43: ='12. RTSR - Historical Wholesale'!D42 -> 90135.47 | E43: 3.1942 | F43: 287910.7183 | H43: ='12. RTSR - Historical Wholesale'!H42 -> 48075.1 | I43: 0.771 | J43: 37065.9021 | L43: ='12. RTSR - Historical Wholesale'!L42 -> 91000.59 | M43: 1.7493 | N43: 159187.3321 | P43: 196253.2342
D44: ='12. RTSR - Historical Wholesale'!D43 -> 101563.6 | E44: 3.1942 | F44: 324414.4511 | H44: ='12. RTSR - Historical Wholesale'!H43 -> 52383.16 | I44: 0.771 | J44: 40387.41636 | L44: ='12. RTSR - Historical Wholesale'!L43 -> 102818.53 | M44: 1.7493 | N44: 179860.4545 | P44: 220247.8709
D45: ='12. RTSR - Historical Wholesale'!D44 -> 130270.95 | E45: 3.1942 | F45: 416111.4685 | H45: ='12. RTSR - Historical Wholesale'!H44 -> 61947.6 | I45: 0.771 | J45: 47761.5996 | L45: ='12. RTSR - Historical Wholesale'!L44 -> 131667.12 | M45: 1.7493 | N45: 230325.293 | P45: 278086.8926
D46: ='12. RTSR - Historical Wholesale'!D45 -> 112716.18 | E46: 3.1942 | F46: 360038.0222 | H46: ='12. RTSR - Historical Wholesale'!H45 -> 59497.92 | I46: 0.771 | J46: 45872.89632 | L46: ='12. RTSR - Historical Wholesale'!L45 -> 116957.91 | M46: 1.7493 | N46: 204594.472 | P46: 250467.3683
D47: ='12. RTSR - Historical Wholesale'!D46 -> 122173 | E47: 3.1942 | F47: 390244.9966 | H47: ='12. RTSR - Historical Wholesale'!H46 -> 62777.31 | I47: 0.771 | J47: 48401.30601 | L47: ='12. RTSR - Historical Wholesale'!L46 -> 123914.04 | M47: 1.7493 | N47: 216762.8302 | P47: 265164.1362
D48: ='12. RTSR - Historical Wholesale'!D47 -> 67503.27 | E48: 3.1942 | F48: 215618.945 | H48: ='12. RTSR - Historical Wholesale'!H47 -> 31002.86 | I48: 0.771 | J48: 23903.20506 | L48: ='12. RTSR - Historical Wholesale'!L47 -> 69822.25 | M48: 1.7493 | N48: 122140.0619 | P48: 146043.267
D49: ='12. RTSR - Historical Wholesale'!D48 -> 72656.96 | E49: 3.1942 | F49: 232080.8616 | H49: ='12. RTSR - Historical Wholesale'!H48 -> 31815.98 | I49: 0.771 | J49: 24530.12058 | L49: ='12. RTSR - Historical Wholesale'!L48 -> 73727.34 | M49: 1.7493 | N49: 128971.2359 | P49: 153501.3564
D50: ='12. RTSR - Historical Wholesale'!D49 -> 74600.51 | E50: 3.1942 | F50: 238288.949 | H50: ='12. RTSR - Historical Wholesale'!H49 -> 32771.19 | I50: 0.771 | J50: 25266.58749 | L50: ='12. RTSR - Historical Wholesale'!L49 -> 75148.52 | M50: 1.7493 | N50: 131457.306 | P50: 156723.8935
D52: =SUM(D39:D50) -> 1069145.36 | E52: =IF(D52<>0,F52/D52,0) -> 3.1942 | F52: =SUM(F39:F50) -> 3415064.109 | H52: =SUM(H39:H50) -> 538640.86 | I52: =IF(H52<>0,J52/H52,0) -> 0.771 | J52: =SUM(J39:J50) -> 415292.1031 | L52: =SUM(L39:L50) -> 1091387.14 | M52: =IF(L52<>0,N52/L52,0) -> 1.7493 | N52: =SUM(N39:N50) -> 1909163.524 | P52: =SUM(P39:P50) -> 2324455.627
B54: ='12. RTSR - Historical Wholesale'!B53 -> Add Extra Host Here (I)
D58: ='12. RTSR - Historical Wholesale'!D57 -> 0 | E58: ='11. RTSR - UTRs & Sub-Tx'!J50 -> 0 | F58: =D58*E58 -> 0 | H58: ='12. RTSR - Historical Wholesale'!H57 -> 0 | I58: ='11. RTSR - UTRs & Sub-Tx'!J52 -> 0 | J58: =H58*I58 -> 0 | L58: ='12. RTSR - Historical Wholesale'!L57 -> 0 | M58: ='11. RTSR - UTRs & Sub-Tx'!J54 -> 0 | N58: =L58*M58 -> 0 | P58: =J58+N58 -> 0
D59: ='12. RTSR - Historical Wholesale'!D58 -> 0 | E59: =E58 -> 0 | F59: 0 | H59: ='12. RTSR - Historical Wholesale'!H58 -> 0 | I59: =I58 -> 0 | J59: 0 | L59: ='12. RTSR - Historical Wholesale'!L58 -> 0 | M59: =M58 -> 0 | N59: 0 | P59: 0
D60: ='12. RTSR - Historical Wholesale'!D59 -> 0 | E60: 0 | F60: 0 | H60: ='12. RTSR - Historical Wholesale'!H59 -> 0 | I60: 0 | J60: 0 | L60: ='12. RTSR - Historical Wholesale'!L59 -> 0 | M60: 0 | N60: 0 | P60: 0
D61: ='12. RTSR - Historical Wholesale'!D60 -> 0 | E61: 0 | F61: 0 | H61: ='12. RTSR - Historical Wholesale'!H60 -> 0 | I61: 0 | J61: 0 | L61: ='12. RTSR - Historical Wholesale'!L60 -> 0 | M61: 0 | N61: 0 | P61: 0
D62: ='12. RTSR - Historical Wholesale'!D61 -> 0 | E62: 0 | F62: 0 | H62: ='12. RTSR - Historical Wholesale'!H61 -> 0 | I62: 0 | J62: 0 | L62: ='12. RTSR - Historical Wholesale'!L61 -> 0 | M62: 0 | N62: 0 | P62: 0
D63: ='12. RTSR - Historical Wholesale'!D62 -> 0 | E63: 0 | F63: 0 | H63: ='12. RTSR - Historical Wholesale'!H62 -> 0 | I63: 0 | J63: 0 | L63: ='12. RTSR - Historical Wholesale'!L62 -> 0 | M63: 0 | N63: 0 | P63: 0
D64: ='12. RTSR - Historical Wholesale'!D63 -> 0 | E64: 0 | F64: 0 | H64: ='12. RTSR - Historical Wholesale'!H63 -> 0 | I64: 0 | J64: 0 | L64: ='12. RTSR - Historical Wholesale'!L63 -> 0 | M64: 0 | N64: 0 | P64: 0
D65: ='12. RTSR - Historical Wholesale'!D64 -> 0 | E65: 0 | F65: 0 | H65: ='12. RTSR - Historical Wholesale'!H64 -> 0 | I65: 0 | J65: 0 | L65: ='12. RTSR - Historical Wholesale'!L64 -> 0 | M65: 0 | N65: 0 | P65: 0
D66: ='12. RTSR - Historical Wholesale'!D65 -> 0 | E66: 0 | F66: 0 | H66: ='12. RTSR - Historical Wholesale'!H65 -> 0 | I66: 0 | J66: 0 | L66: ='12. RTSR - Historical Wholesale'!L65 -> 0 | M66: 0 | N66: 0 | P66: 0
D67: ='12. RTSR - Historical Wholesale'!D66 -> 0 | E67: 0 | F67: 0 | H67: ='12. RTSR - Historical Wholesale'!H66 -> 0 | I67: 0 | J67: 0 | L67: ='12. RTSR - Historical Wholesale'!L66 -> 0 | M67: 0 | N67: 0 | P67: 0
D68: ='12. RTSR - Historical Wholesale'!D67 -> 0 | E68: 0 | F68: 0 | H68: ='12. RTSR - Historical Wholesale'!H67 -> 0 | I68: 0 | J68: 0 | L68: ='12. RTSR - Historical Wholesale'!L67 -> 0 | M68: 0 | N68: 0 | P68: 0
D69: ='12. RTSR - Historical Wholesale'!D68 -> 0 | E69: 0 | F69: 0 | H69: ='12. RTSR - Historical Wholesale'!H68 -> 0 | I69: 0 | J69: 0 | L69: ='12. RTSR - Historical Wholesale'!L68 -> 0 | M69: 0 | N69: 0 | P69: 0
D71: =SUM(D58:D69) -> 0 | E71: =IF(D71<>0,F71/D71,0) -> 0 | F71: =SUM(F58:F69) -> 0 | H71: =SUM(H58:H69) -> 0 | I71: =IF(H71<>0,J71/H71,0) -> 0 | J71: =SUM(J58:J69) -> 0 | L71: =SUM(L58:L69) -> 0 | M71: =IF(L71<>0,N71/L71,0) -> 0 | N71: =SUM(N58:N69) -> 0 | P71: =SUM(P58:P69) -> 0
B73: ='12. RTSR - Historical Wholesale'!B72 -> Add Extra Host Here (II)
D77: ='12. RTSR - Historical Wholesale'!D76 -> 0 | E77: ='11. RTSR - UTRs & Sub-Tx'!J65 -> 0 | F77: =D77*E77 -> 0 | H77: ='12. RTSR - Historical Wholesale'!H76 -> 0 | I77: ='11. RTSR - UTRs & Sub-Tx'!J67 -> 0 | J77: =H77*I77 -> 0 | L77: ='12. RTSR - Historical Wholesale'!L76 -> 0 | M77: ='11. RTSR - UTRs & Sub-Tx'!J69 -> 0 | N77: =L77*M77 -> 0 | P77: =J77+N77 -> 0
D78: ='12. RTSR - Historical Wholesale'!D77 -> 0 | E78: =E77 -> 0 | F78: 0 | H78: ='12. RTSR - Historical Wholesale'!H77 -> 0 | I78: =I77 -> 0 | J78: 0 | L78: ='12. RTSR - Historical Wholesale'!L77 -> 0 | M78: =M77 -> 0 | N78: 0 | P78: 0
D79: ='12. RTSR - Historical Wholesale'!D78 -> 0 | E79: 0 | F79: 0 | H79: ='12. RTSR - Historical Wholesale'!H78 -> 0 | I79: 0 | J79: 0 | L79: ='12. RTSR - Historical Wholesale'!L78 -> 0 | M79: 0 | N79: 0 | P79: 0
D80: ='12. RTSR - Historical Wholesale'!D79 -> 0 | E80: 0 | F80: 0 | H80: ='12. RTSR - Historical Wholesale'!H79 -> 0 | I80: 0 | J80: 0 | L80: ='12. RTSR - Historical Wholesale'!L79 -> 0 | M80: 0 | N80: 0 | P80: 0
D81: ='12. RTSR - Historical Wholesale'!D80 -> 0 | E81: 0 | F81: 0 | H81: ='12. RTSR - Historical Wholesale'!H80 -> 0 | I81: 0 | J81: 0 | L81: ='12. RTSR - Historical Wholesale'!L80 -> 0 | M81: 0 | N81: 0 | P81: 0
D82: ='12. RTSR - Historical Wholesale'!D81 -> 0 | E82: 0 | F82: 0 | H82: ='12. RTSR - Historical Wholesale'!H81 -> 0 | I82: 0 | J82: 0 | L82: ='12. RTSR - Historical Wholesale'!L81 -> 0 | M82: 0 | N82: 0 | P82: 0
D83: ='12. RTSR - Historical Wholesale'!D82 -> 0 | E83: 0 | F83: 0 | H83: ='12. RTSR - Historical Wholesale'!H82 -> 0 | I83: 0 | J83: 0 | L83: ='12. RTSR - Historical Wholesale'!L82 -> 0 | M83: 0 | N83: 0 | P83: 0
D84: ='12. RTSR - Historical Wholesale'!D83 -> 0 | E84: 0 | F84: 0 | H84: ='12. RTSR - Historical Wholesale'!H83 -> 0 | I84: 0 | J84: 0 | L84: ='12. RTSR - Historical Wholesale'!L83 -> 0 | M84: 0 | N84: 0 | P84: 0
D85: ='12. RTSR - Historical Wholesale'!D84 -> 0 | E85: 0 | F85: 0 | H85: ='12. RTSR - Historical Wholesale'!H84 -> 0 | I85: 0 | J85: 0 | L85: ='12. RTSR - Historical Wholesale'!L84 -> 0 | M85: 0 | N85: 0 | P85: 0
D86: ='12. RTSR - Historical Wholesale'!D85 -> 0 | E86: 0 | F86: 0 | H86: ='12. RTSR - Historical Wholesale'!H85 -> 0 | I86: 0 | J86: 0 | L86: ='12. RTSR - Historical Wholesale'!L85 -> 0 | M86: 0 | N86: 0 | P86: 0
D87: ='12. RTSR - Historical Wholesale'!D86 -> 0 | E87: 0 | F87: 0 | H87: ='12. RTSR - Historical Wholesale'!H86 -> 0 | I87: 0 | J87: 0 | L87: ='12. RTSR - Historical Wholesale'!L86 -> 0 | M87: 0 | N87: 0 | P87: 0
D88: ='12. RTSR - Historical Wholesale'!D87 -> 0 | E88: 0 | F88: 0 | H88: ='12. RTSR - Historical Wholesale'!H87 -> 0 | I88: 0 | J88: 0 | L88: ='12. RTSR - Historical Wholesale'!L87 -> 0 | M88: 0 | N88: 0 | P88: 0
D90: =SUM(D77:D88) -> 0 | E90: =IF(D90<>0,F90/D90,0) -> 0 | F90: =SUM(F77:F88) -> 0 | H90: =SUM(H77:H88) -> 0 | I90: =IF(H90<>0,J90/H90,0) -> 0 | J90: =SUM(J77:J88) -> 0 | L90: =SUM(L77:L88) -> 0 | M90: =IF(L90<>0,N90/L90,0) -> 0 | N90: =SUM(N77:N88) -> 0 | P90: =SUM(P77:P88) -> 0
D96: =D20+D39+D58+D77 -> 83718.39 | E96: =IF(D96<>0,F96/D96,0) -> 3.1942 | F96: =F20+F39+F58+F77 -> 267413.2813 | H96: =H20+H39+H58+H77 -> 43137.05 | I96: =IF(H96<>0,J96/H96,0) -> 0.771 | J96: =J20+J39+J58+J77 -> 33258.66555 | L96: =L20+L39+L58+L77 -> 83718.39 | M96: =IF(L96<>0,N96/L96,0) -> 1.7493 | N96: =N20+N39+N58+N77 -> 146448.5796 | P96: =J96+N96 -> 179707.2452
D97: =D21+D40+D59+D78 -> 77247.7 | E97: 3.1942 | F97: =F21+F40+F59+F78 -> 246744.6033 | H97: =H21+H40+H59+H78 -> 40405.77 | I97: 0.771 | J97: =J21+J40+J59+J78 -> 31152.84867 | L97: =L21+L40+L59+L78 -> 79705.46 | M97: 1.7493 | N97: =N21+N40+N59+N78 -> 139428.7612 | P97: 170581.6098
D98: 70180.48 | E98: 3.1942 | F98: 224170.4892 | H98: 37812.1 | I98: 0.771 | J98: 29153.1291 | L98: 73776.98 | M98: 1.7493 | N98: 129058.0711 | P98: 158211.2002
D99: 66378.85 | E99: 3.1942 | F99: 212027.3227 | H99: 37014.82 | I99: 0.771 | J99: 28538.42622 | L99: 69130.01 | M99: 1.7493 | N99: 120929.1265 | P99: 149467.5527
D100: 90135.47 | E100: 3.1942 | F100: 287910.7183 | H100: 48075.1 | I100: 0.771 | J100: 37065.9021 | L100: 91000.59 | M100: 1.7493 | N100: 159187.3321 | P100: 196253.2342
D101: 101563.6 | E101: 3.1942 | F101: 324414.4511 | H101: 52383.16 | I101: 0.771 | J101: 40387.41636 | L101: 102818.53 | M101: 1.7493 | N101: 179860.4545 | P101: 220247.8709
D102: 130270.95 | E102: 3.1942 | F102: 416111.4685 | H102: 61947.6 | I102: 0.771 | J102: 47761.5996 | L102: 131667.12 | M102: 1.7493 | N102: 230325.293 | P102: 278086.8926
D103: 112716.18 | E103: 3.1942 | F103: 360038.0222 | H103: 59497.92 | I103: 0.771 | J103: 45872.89632 | L103: 116957.91 | M103: 1.7493 | N103: 204594.472 | P103: 250467.3683
D104: 122173 | E104: 3.1942 | F104: 390244.9966 | H104: 62777.31 | I104: 0.771 | J104: 48401.30601 | L104: 123914.04 | M104: 1.7493 | N104: 216762.8302 | P104: 265164.1362
D105: 67503.27 | E105: 3.1942 | F105: 215618.945 | H105: 31002.86 | I105: 0.771 | J105: 23903.20506 | L105: 69822.25 | M105: 1.7493 | N105: 122140.0619 | P105: 146043.267
D106: 72656.96 | E106: 3.1942 | F106: 232080.8616 | H106: 31815.98 | I106: 0.771 | J106: 24530.12058 | L106: 73727.34 | M106: 1.7493 | N106: 128971.2359 | P106: 153501.3564
D107: 74600.51 | E107: 3.1942 | F107: 238288.949 | H107: 32771.19 | I107: 0.771 | J107: 25266.58749 | L107: 75148.52 | M107: 1.7493 | N107: 131457.306 | P107: 156723.8935
D109: =SUM(D96:D107) -> 1069145.36 | E109: =IF(D109<>0,F109/D109,0) -> 3.1942 | F109: =SUM(F96:F107) -> 3415064.109 | H109: =SUM(H96:H107) -> 538640.86 | I109: =IF(H109<>0,J109/H109,0) -> 0.771 | J109: =SUM(J96:J107) -> 415292.1031 | L109: =SUM(L96:L107) -> 1091387.14 | M109: =IF(L109<>0,N109/L109,0) -> 1.7493 | N109: =SUM(N96:N107) -> 1909163.524 | P109: =SUM(P96:P107) -> 2324455.627
P111: ='11. RTSR - UTRs & Sub-Tx'!J74 -> 0
P113: =P109+P111 -> 2324455.627

Sheet 15. RTSR Rates to Forecast
D17: 0.0052 | E17: 261412167.7 | F17: 0 | G17: =IF(ISERROR(D17*E17), 0, ROUND(D17*E17, 2)) -> 1359343.27 | H17: =G17/3706637.51 -> 0.3667321842 | I17: =H17*total_current_wholesale_network -> 1311649.719 | J17: =IF(ISERROR(I17/E17), 0, I17/E17) -> 0.005017554197
D18: 0.0045 | E18: 69825418.08 | F18: 0 | G18: =IF(ISERROR(D18*E18), 0, ROUND(D18*E18, 2)) -> 314214.38 | H18: 0.08477073335 | I18: 303189.9391 | J18: =IF(ISERROR(I18/E18), 0, I18/E18) -> 0.004342114197
D19: 1.8436 | F19: 467566 | G19: =IF(ISERROR(D19*F19), 0, ROUND(D19*F19, 2)) -> 862004.68 | H19: 0.2325570487 | I19: 831760.6166 | J19: =IF(ISERROR(I19/F19), 0, I19/F19) -> 1.778915953
D20: 2.271 | F20: 467566 | G20: =IF(ISERROR(D20*F20), 0, ROUND(D20*F20, 2)) -> 1061842.39 | H20: 0.2864705241 | I20: 1024586.875 | J20: =IF(ISERROR(I20/F20), 0, I20/F20) -> 2.191320316
D21: 2.271 | F21: 37510 | G21: =IF(ISERROR(D21*F21), 0, ROUND(D21*F21, 2)) -> 85185.21 | H21: 0.02298180218 | I21: 82196.42473 | J21: =IF(ISERROR(I21/F21), 0, I21/F21) -> 2.191320307
D22: 0.0045 | E22: 1660209.662 | F22: 0 | G22: =IF(ISERROR(D22*E22), 0, ROUND(D22*E22, 2)) -> 7470.94 | H22: 0.002015557221 | I22: 7208.816617 | J22: =IF(ISERROR(I22/E22), 0, I22/E22) -> 0.004342112193
D23: 1.4193 | F23: 896.01 | G23: =IF(ISERROR(D23*F23), 0, ROUND(D23*F23, 2)) -> 1271.71 | H23: 0.000343089929 | I23: 1227.091126 | J23: =IF(ISERROR(I23/F23), 0, I23/F23) -> 1.369506062
D24: 1.3995 | F24: 10936 | G24: =IF(ISERROR(D24*F24), 0, ROUND(D24*F24, 2)) -> 15304.93 | H24: 0.004129060357 | I24: 14767.94536 | J24: =IF(ISERROR(I24/F24), 0, I24/F24) -> 1.350397345
D29: 0.0034 | E29: 261412167.7 | F29: 0 | G29: =IF(ISERROR(D29*E29), 0, ROUND(D29*E29, 2)) -> 888801.37 | H29: =G29/2440732.78 -> 0.3641534941 | I29: =H29*Total_Current_Wholesale_Lineplus -> 857859.0189 | J29: =IF(ISERROR(I29/E29), 0, I29/E29) -> 0.003281633853
D30: 0.0032 | E30: 69825418.08 | F30: 0 | G30: =IF(ISERROR(D30*E30), 0, ROUND(D30*E30, 2)) -> 223441.34 | H30: 0.09154682636 | I30: 215662.5487 | J30: =IF(ISERROR(I30/E30), 0, I30/E30) -> 0.003088596597
D31: 1.2765 | F31: 467566 | G31: =IF(ISERROR(D31*F31), 0, ROUND(D31*F31, 2)) -> 596848 | H31: 0.244536397 | I31: 576069.5888 | J31: =IF(ISERROR(I31/F31), 0, I31/F31) -> 1.232060477
D32: 1.4154 | F32: 467566 | G32: =IF(ISERROR(D32*F32), 0, ROUND(D32*F32, 2)) -> 661792.92 | H32: 0.2711451763 | I32: 638753.5441 | J32: =IF(ISERROR(I32/F32), 0, I32/F32) -> 1.366124877
D33: 1.4154 | F33: 37510 | G33: =IF(ISERROR(D33*F33), 0, ROUND(D33*F33, 2)) -> 53091.65 | H33: 0.0217523403 | I33: 51243.33999 | J33: =IF(ISERROR(I33/F33), 0, I33/F33) -> 1.366124766
D34: 0.0032 | E34: 1660209.662 | F34: 0 | G34: =IF(ISERROR(D34*E34), 0, ROUND(D34*E34, 2)) -> 5312.67 | H34: 0.002176670074 | I34: 5127.716977 | J34: =IF(ISERROR(I34/E34), 0, I34/E34) -> 0.003088596033
D35: 0.9731 | F35: 896.01 | G35: =IF(ISERROR(D35*F35), 0, ROUND(D35*F35, 2)) -> 871.91 | H35: 0.0003572328799 | I35: 841.5556979 | J35: =IF(ISERROR(I35/F35), 0, I35/F35) -> 0.9392257875
D36: 0.9668 | F36: 10936 | G36: =IF(ISERROR(D36*F36), 0, ROUND(D36*F36, 2)) -> 10572.92 | H36: 0.004331862991 | I36: 10204.83888 | J36: =IF(ISERROR(I36/F36), 0, I36/F36) -> 0.9331418143
D41: 0.005017554197 | E41: 261412167.7 | F41: 0 | G41: =IF(ISERROR(D41*E41), 0, ROUND(D41*E41, 2)) -> 1311649.72 | H41: =G41/3576587.43 -> 0.3667321841 | I41: =H41*forecast_wholesale_network -> 1252413.92 | J41: =IF(ISERROR(I41/E41), 0, I41/E41) -> 0.004790954953
D42: 0.004342114197 | E42: 69825418.08 | F42: 0 | G42: =IF(ISERROR(D42*E42), 0, ROUND(D42*E42, 2)) -> 303189.94 | H42: 0.08477073354 | I42: 289497.4896 | J42: =IF(ISERROR(I42/E42), 0, I42/E42) -> 0.004146018707
D43: 1.778915953 | F43: 467566 | G43: =IF(ISERROR(D43*F43), 0, ROUND(D43*F43, 2)) -> 831760.62 | H43: 0.2325570495 | I43: 794197.233 | J43: =IF(ISERROR(I43/F43), 0, I43/F43) -> 1.698577812
D44: 2.191320316 | F44: 467566 | G44: =IF(ISERROR(D44*F44), 0, ROUND(D44*F44, 2)) -> 1024586.87 | H44: 0.2864705225 | I44: 978315.1998 | J44: =IF(ISERROR(I44/F44), 0, I44/F44) -> 2.092357442
D45: 2.191320307 | F45: 37510 | G45: =IF(ISERROR(D45*F45), 0, ROUND(D45*F45, 2)) -> 82196.42 | H45: 0.02298180084 | I45: 78484.3232 | J45: =IF(ISERROR(I45/F45), 0, I45/F45) -> 2.092357323
D46: 0.004342112193 | E46: 1660209.662 | F46: 0 | G46: =IF(ISERROR(D46*E46), 0, ROUND(D46*E46, 2)) -> 7208.82 | H46: 0.002015558166 | I46: 6883.260351 | J46: =IF(ISERROR(I46/E46), 0, I46/E46) -> 0.004146018728
D47: 1.369506062 | F47: 896.01 | G47: =IF(ISERROR(D47*F47), 0, ROUND(D47*F47, 2)) -> 1227.09 | H47: 0.0003430896138 | I47: 1171.673026 | J47: =IF(ISERROR(I47/F47), 0, I47/F47) -> 1.307656194
D48: 1.350397345 | F48: 10936 | G48: =IF(ISERROR(D48*F48), 0, ROUND(D48*F48, 2)) -> 14767.95 | H48: 0.004129061651 | I48: 14101.01025 | J48: =IF(ISERROR(I48/F48), 0, I48/F48) -> 1.289412056
D53: 0.003281633853 | E53: 261412167.7 | F53: 0 | G53: =IF(ISERROR(D53*E53), 0, ROUND(D53*E53, 2)) -> 857859.02 | H53: =G53/2355762.16 -> 0.3641534933 | I53: =H53*forecast_wholesale_lineplus -> 846458.6367 | J53: =IF(ISERROR(I53/E53), 0, I53/E53) -> 0.003238023097
D54: 0.003088596597 | E54: 69825418.08 | F54: 0 | G54: =IF(ISERROR(D54*E54), 0, ROUND(D54*E54, 2)) -> 215662.55 | H54: 0.09154682661 | I54: 212796.5363 | J54: =IF(ISERROR(I54/E54), 0, I54/E54) -> 0.003047551194
D55: 1.232060477 | F55: 467566 | G55: =IF(ISERROR(D55*F55), 0, ROUND(D55*F55, 2)) -> 576069.59 | H55: 0.2445363967 | I55: 568414.0032 | J55: =IF(ISERROR(I55/F55), 0, I55/F55) -> 1.215687204
D56: 1.366124877 | F56: 467566 | G56: =IF(ISERROR(D56*F56), 0, ROUND(D56*F56, 2)) -> 638753.54 | H56: 0.2711451737 | I56: 630264.9247 | J56: =IF(ISERROR(I56/F56), 0, I56/F56) -> 1.347969965
D57: 1.366124766 | F57: 37510 | G57: =IF(ISERROR(D57*F57), 0, ROUND(D57*F57, 2)) -> 51243.34 | H57: 0.02175234023 | I57: 50562.34964 | J57: =IF(ISERROR(I57/F57), 0, I57/F57) -> 1.347969865
D58: 0.003088596033 | E58: 1660209.662 | F58: 0 | G58: =IF(ISERROR(D58*E58), 0, ROUND(D58*E58, 2)) -> 5127.72 | H58: 0.00217667135 | I58: 5059.575967 | J58: =IF(ISERROR(I58/E58), 0, I58/E58) -> 0.003047552416
D59: 0.9392257875 | F59: 896.01 | G59: =IF(ISERROR(D59*F59), 0, ROUND(D59*F59, 2)) -> 841.56 | H59: 0.0003572347049 | I59: 830.3762199 | J59: =IF(ISERROR(I59/F59), 0, I59/F59) -> 0.9267488309
D60: 0.9331418143 | F60: 10936 | G60: =IF(ISERROR(D60*F60), 0, ROUND(D60*F60, 2)) -> 10204.84 | H60: 0.004331863451 | I60: 10069.22437 | J60: =IF(ISERROR(I60/F60), 0, I60/F60) -> 0.920741073

Sheet 16. Rev2Cost_GDPIPI
Y1: FALSE | Z1: 0
Y2: TRUE
B8: 0
B9: 0
B10: 0
B12: 0.019 | D12: 0 | F12: 25902 | H12: 2016
D13: =B12-D12-B14 -> 0.0175 | F13: 271379498 | H13: 4
B14: =IF(B13="I", 0%, IF(B13="II", 0.15%, IF(B13="III", 0.3%, IF(B13="IV", 0.45%, 0.6%)))) -> 0.0015 | F14: 3
B17: 16.58 | D17: 0.0116 | F17: =D13 -> 0.0175 | G17: =H27*(1+D13) -> 20.3093 | H17: =H28*(1+D13) -> 0.00783475
B18: 34.53 | D18: 0.0118 | F18: =D13 -> 0.0175 | G18: =(B18+C18)*(1+D13) -> 35.134275 | H18: =(D18+E18)*(1+D13) -> 0.0120065
B19: 228.69 | D19: 2.1721 | F19: =D13 -> 0.0175 | G19: =(B19+C19)*(1+D13) -> 232.692075 | H19: =(D19+E19)*(1+D13) -> 2.21011175
B20: 1502.44 | D20: 1.3932 | F20: =D13 -> 0.0175 | G20: =(B20+C20)*(1+D13) -> 1528.7327 | H20: =(D20+E20)*(1+D13) -> 1.417581
B21: 9.37 | D21: 0.0292 | F21: =D13 -> 0.0175 | G21: =(B21+C21)*(1+D13) -> 9.533975 | H21: =(D21+E21)*(1+D13) -> 0.029711
B22: 3.35 | D22: 9.6238 | F22: =D13 -> 0.0175 | G22: =(B22+C22)*(1+D13) -> 3.408625 | H22: =(D22+E22)*(1+D13) -> 9.7922165
B23: 3.24 | D23: 8.7869 | F23: =D13 -> 0.0175 | G23: =(B23+C23)*(1+D13) -> 3.2967 | H23: =(D23+E23)*(1+D13) -> 8.94067075
B24: 5.4 | G24: =B24 -> 5.4
B27: =B17+C17 -> 16.58 | C27: =B27*COS_RES_CUSTOMERS*12 -> 5153461.92 | D27: =IF(ISERROR(C27/C29), 0, C27/C29) -> 0.620789521 | E27: =IF(ISERROR((1-D27)/YRS_LEFT), 0, (1-D27)/YRS_LEFT) -> 0.126403493 | F27: =IF(ISERROR(ROUND(E27*C29/COS_RES_CUSTOMERS/12, 2)), 0, ROUND(E27*C29/COS_RES_CUSTOMERS/12, 2)) -> 3.38 | G27: =E27+D27 -> 0.747193014 | H27: =IF(ISERROR(ROUND(G27*C29/COS_RES_CUSTOMERS/12, 2)), 0, ROUND(G27*C29/COS_RES_CUSTOMERS/12, 2)) -> 19.96 | I27: =ROUND(H27*COS_RES_CUSTOMERS*12, 2) -> 6204047.04
B28: =D17+E17 -> 0.0116 | C28: =B28*COS_RES_KWH -> 3148002.177 | D28: =IF(ISERROR(C28/C29), 0, C28/C29) -> 0.379210479 | G28: =1-G27 -> 0.252806986 | H28: =IF(ISERROR(ROUND(G28*C29/COS_RES_KWH, 4)), 0, ROUND(G28*C29/COS_RES_KWH, 4)) -> 0.0077 | I28: =ROUND(H28*COS_RES_KWH, 2) -> 2089622.13
C29: =SUM(C27+C28) -> 8301464.097 | I29: =SUM(I27+I28) -> 8293669.17
A32: =IF((H27-B27)>=4, "The Rate Design Transition has calculated a monthly fixed charge greater than or equal to $4. Please refer to Section 3.2.3 of the Chapter 3 Filing Requirements for mitigation instructions.", "") -> 

Sheet 17. Regulatory Charges
D14: 0.0036
D15: 0.0021
D16: 0.25
D17: 0

Sheet 18. Additional Rates
AA1: 3

Sheet 19. Final Tariff Schedule
J1: 9
E22: 20.3093
E23: 0.79 | Q23: 2018-10-31
E24: -0.1
E25: 0.00783475
E26: 0.001
E27: 0.0066 | Q27: 2018-04-30
E28: 0.0048
E29: 0.0032
E33: 0.0036
E34: 0.0021
E35: 0
E36: 0.25
E51: -30
E55: -34
E59: -38
E63: -42
E67: -45
E72: -50
E76: -55
E80: -60
E84: -75
E100: 35.134275
E101: 0.79 | Q101: 2018-10-31
E102: 0.0120065
E103: 0.001
E104: 0.0066 | Q104: 2018-04-30
E105: -0.0001
E106: 0.0041
E107: 0.003
E111: 0.0036
E112: 0.0021
E113: 0
E114: 0.25
E130: 232.692075
E131: 2.21011175
E132: 0.3506
E133: 2.5358 | Q133: 2018-04-30
E134: -0.0192
E135: 1.6986
E136: 1.2157
E137: 2.0924
E138: 1.348
E142: 0.0036
E143: 0.0021
E144: 0
E145: 0.25
E161: 1528.7327
E162: 1.417581
E163: 0.4094
E164: 2.0924
E165: 1.348
E169: 0.0036
E170: 0.0021
E171: 0
E172: 0.25
E188: 9.533975
E189: 0.029711
E190: 0.001
E191: 0.0066 | Q191: 2018-04-30
E192: -0.0078
E193: 0.0041
E194: 0.003
E198: 0.0036
E199: 0.0021
E200: 0
E201: 0.25
E217: 3.408625
E218: 9.7922165
E219: 0.2816
E220: 2.3785 | Q220: 2018-04-30
E221: -0.0002
E222: 1.3077
E223: 0.9267
E227: 0.0036
E228: 0.0021
E229: 0
E230: 0.25
E246: 3.2967
E247: 8.94067075
E248: 0.2798
E249: 2.1886 | Q249: 2018-04-30
E250: -0.0492
E251: 1.2894
E252: 0.9207
E256: 0.0036
E257: 0.0021
E258: 0
E259: 0.25
E275: 5.4
E278: -0.6
E279: -1
E291: 15
E292: 15
E293: 15
E294: 15
E295: 15
E296: 15
E297: 15
E298: 15
E299: 15
E300: 30
E301: 30
E302: 30
E305: 1.5
E306: 19.56
E307: 30
E308: 165
E309: 65
E310: 185
E311: 185
E312: 415
E313: 65
E314: 185
E317: 30
E318: 165
E319: 500
E320: 300
E321: 1000
E322: 22.35
E339: 100
E340: 20
E341: 0.5
E342: 0.3
E343: -0.3
E345: 0.25
E346: 0.5
E351: 2
E356: 1.0602
E357: 1.0496

Sheet 20. Bill Impacts

Sheet 212_Total_Connection_RollUp (hidden)
A4: 2015
C6: 11635
C7: 0
C8: 43
C9: 0
C10: 0
C11: 0
C12: 1063
C13: 0
C14: 0
C15: 1402
C16: 233
C17: 18
C18: 0
C19: 0
C20: 0
C21: 625
C22: 0
C23: 0
C24: 32326
C25: 3495
C26: 384
C27: 3
C28: 0
C29: 0
C30: 10011
C31: 411
C32: 262
C33: 8631
C34: 1297
C35: 130
C36: 0
C37: 0
C38: 0
C39: 2640
C40: 168
C41: 49
C42: 35892
C43: 2793
C44: 442
C45: 0
C46: 0
C47: 1
C48: 10227
C49: 617
C50: 428
C51: 60366
C52: 5259
C53: 1031
C54: 0
C55: 0
C56: 0
C57: 15225
C58: 0
C59: 574
C60: 47501
C61: 4887
C62: 716
C63: 2
C64: 0
C65: 2
C66: 12891
C67: 0
C68: 470
C69: 25999
C70: 2496
C71: 218
C72: 0
C73: 0
C74: 0
C75: 5737
C76: 752
C77: 36
C78: 5967
C79: 742
C80: 48
C81: 0
C82: 0
C83: 0
C84: 1705
C85: 31
C86: 13
C87: 1059
C88: 157
C89: 13
C90: 0
C91: 0
C92: 0
C93: 328
C94: 23
C95: 4
C96: 14715
C97: 1742
C98: 126
C99: 0
C100: 0
C101: 0
C102: 3018
C103: 0
C104: 30
C105: 1884
C106: 164
C107: 11
C108: 0
C109: 0
C110: 0
C111: 451
C112: 0
C113: 18
C114: 10242
C115: 1360
C116: 102
C117: 0
C118: 0
C119: 1
C120: 3007
C121: 36
C122: 18
C123: 181140
C124: 17894
C125: 4423
C126: 9
C127: 0
C128: 0
C129: 50174
C130: 0
C131: 2968
C132: 36287
C133: 3913
C134: 458
C135: 1
C136: 0
C137: 0
C138: 13045
C139: 475
C140: 251
C141: 78520
C142: 7442
C143: 1241
C144: 9
C145: 0
C146: 0
C147: 23467
C148: 611
C149: 780
C150: 16474
C151: 1799
C152: 160
C153: 1
C154: 0
C155: 4
C156: 5830
C157: 296
C158: 111
C159: 2854
C160: 406
C161: 29
C162: 0
C163: 0
C164: 0
C165: 1064
C166: 34
C167: 21
C168: 26713
C169: 1926
C170: 253
C171: 0
C172: 0
C173: 0
C174: 2700
C175: 276
C176: 134
C177: 18279
C178: 2061
C179: 215
C180: 1
C181: 0
C182: 0
C183: 6530
C184: 44
C185: 227
C186: 3264
C187: 418
C188: 47
C189: 0
C190: 0
C191: 0
C192: 1103
C193: 0
C194: 6
C195: 42746
C196: 4032
C197: 520
C198: 0
C199: 0
C200: 0
C201: 9746
C202: 398
C203: 317
C204: 10267
... 449 more rows

Sheet 2.1.7 Filing (hidden)

Sheet 20. HIDDEN (hidden)
O2: =FIND("RESIDENTIAL", E2) -> 
A12: =$E2 -> 0 | G12: 1 | H12: =G12*F12 -> 0 | J12: =G12 -> 1 | K12: =J12*I12 -> 0 | L12: =K12-H12 -> 0 | M12: =IF(ISERROR(L12/H12), "", L12/H12) -> 
A13: =A12 -> 0 | G13: =IF($E5>0, $E5, $E4) -> 0 | H13: =G13*F13 -> 0 | J13: =IF($E5>0, $E5, $E4) -> 0 | K13: =J13*I13 -> 0 | L13: 0 | M13: =IF(ISERROR(L13/H13), "", L13/H13) -> 
A14: =A13 -> 0 | G14: 1 | H14: 0 | J14: =G14 -> 1 | K14: =J14*I14 -> 0 | L14: 0
A15: 0 | G15: =IF($E5>0, $E5, $E4) -> 0 | H15: 0 | J15: =IF($E5>0, $E5, $E4) -> 0 | K15: 0 | L15: 0
A16: 0 | H16: =SUM(H12:H15) -> 0 | K16: =SUM(K12:K15) -> 0 | L16: 0 | M16: =IF((H16)=0,"",(L16/H16)) -> 
A17: 0 | F17: =IF((E4*12>=150000), 0, IF(E3="RPP",(F31*0.65+F32*0.17+F33*0.18),IF(E3="Non-RPP (Retailer)",F34,F35))) -> 0.113 | G17: =IF(F17=0, 0, $E4*E6-E4) -> 0 | H17: =G17*F17 -> 0 | I17: =IF((E4*12>=150000), 0, IF(E3="RPP",(I31*0.65+I32*0.17+I33*0.18),IF(E3="Non-RPP (Retailer)",I34,I35))) -> 0.113 | J17: =IF(I17=0, 0, E4*E7-E4) -> 0 | K17: =J17*I17 -> 0 | L17: =K17-H17 -> 0 | M17: =IF(ISERROR(L17/H17), "", L17/H17) -> 
A18: 0 | G18: =IF($E5>0, $E5, $E4) -> 0 | H18: 0 | J18: =IF($E5>0, $E5, $E4) -> 0 | K18: 0 | L18: 0
A19: 0 | J19: =E4 -> 0 | K19: 0 | L19: 0
A20: 0 | G20: =IF($E5>0, $E5, $E4) -> 0 | H20: 0 | J20: =IF($E5>0, $E5, $E4) -> 0 | K20: 0 | L20: 0
A21: 0 | F21: =IF(OR(ISNUMBER(SEARCH("RESIDENTIAL", E2))=TRUE, ISNUMBER(SEARCH("GENERAL SERVICE LESS THAN 50", E2))=TRUE), 0.79, 0) -> 0 | G21: 1 | H21: =G21*F21 -> 0 | I21: =IF(OR(ISNUMBER(SEARCH("RESIDENTIAL", E2))=TRUE, ISNUMBER(SEARCH("GENERAL SERVICE LESS THAN 50", E2))=TRUE), 0.79, 0) -> 0 | J21: 1 | K21: =J21*I21 -> 0 | L21: =K21-H21 -> 0 | M21: =IF(ISERROR(L21/H21), "", L21/H21) -> 
A22: 0 | H22: =SUM(H16:H21) -> 0 | K22: =SUM(K16:K21) -> 0 | L22: 0 | M22: =IF((H22)=0,"",(L22/H22)) -> 
A23: 0 | G23: =IF($E5>0, $E5, $E4*$E6) -> 0 | H23: =G23*F23 -> 0 | J23: =IF($E5>0, $E5, $E4*$E7) -> 0 | K23: =J23*I23 -> 0 | L23: 0 | M23: =IF(ISERROR(L23/H23), "", L23/H23) -> 
A24: 0 | G24: =IF($E5>0, $E5, $E4*$E6) -> 0 | H24: =G24*F24 -> 0 | J24: =IF($E5>0, $E5, $E4*$E7) -> 0 | K24: =J24*I24 -> 0 | L24: 0 | M24: =IF(ISERROR(L24/H24), "", L24/H24) -> 
A25: 0 | H25: =SUM(H22:H24) -> 0 | K25: =SUM(K22:K24) -> 0 | L25: 0 | M25: =IF((H25)=0,"",(L25/H25)) -> 
A26: 0 | G26: =E4*E6 -> 0 | H26: =G26*F26 -> 0 | I26: ='17. Regulatory Charges'!$D$14 -> 0.0036 | J26: =E4*E7 -> 0 | K26: =J26*I26 -> 0 | L26: 0 | M26: =IF(ISERROR(L26/H26), "", L26/H26) -> 
A27: 0 | G27: =E4*E6 -> 0 | H27: 0 | I27: ='17. Regulatory Charges'!$D$15 -> 0.0021 | J27: =E4*E7 -> 0 | K27: 0 | L27: 0
A28: 0 | G28: 1 | H28: 0 | I28: ='17. Regulatory Charges'!$D$16 -> 0.25 | J28: 1 | K28: 0.25 | L28: 0.25
A29: 0 | F29: =IF('1. Information Sheet'!F26 = DATE(2016, 5, 1), (IF(ISERROR(FIND("RESIDENTIAL", UPPER(E2))), 0.007, 0)), 0.007) -> 0.007 | G29: =E4 -> 0 | H29: 0 | I29: =IF(ISERROR(FIND("RESIDENTIAL", UPPER(E2))), 0.007, 0) -> 0.007 | J29: =E4 -> 0 | K29: 0 | L29: 0
A30: 0 | F30: 0.0011 | G30: =E4*E7 -> 0 | H30: 0 | I30: 0 | J30: =E4*E7 -> 0 | K30: =J30*I30 -> 0 | L30: =K30-H30 -> 0
A31: 0 | F31: 0.087 | G31: =IF(AND(E4*12>=150000),0.65*E4*E6,0.65*E4) -> 0 | H31: 0 | I31: 0.087 | J31: =IF(AND(E4*12>=150000),0.65*E4*E7,0.65*E4) -> 0 | K31: 0 | L31: 0
A32: 0 | F32: 0.132 | G32: =IF(AND(E4*12>=150000),0.17*E4*E6,0.17*E4) -> 0 | H32: 0 | I32: 0.132 | J32: =IF(AND(E4*12>=150000),0.17*E4*E7,0.17*E4) -> 0 | K32: 0 | L32: 0
A33: 0 | F33: 0.18 | G33: =IF(AND(E4*12>=150000),0.18*E4*E6,0.18*E4) -> 0 | H33: 0 | I33: 0.18 | J33: =IF(AND(E4*12>=150000),0.18*E4*E7,0.18*E4) -> 0 | K33: 0 | L33: 0
A34: 0 | F34: =0.113 -> 0.113 | G34: =IF(AND(E4*12>=150000),E4*E6,E4) -> 0 | H34: =G34*F34 -> 0 | I34: =F34 -> 0.113 | J34: =IF(AND(E4*12>=150000),E4*E7,E4) -> 0 | K34: =J34*I34 -> 0 | L34: 0
A35: 0 | F35: =0.113 -> 0.113 | G35: =IF(AND(E4*12>=150000),E4*E6,E4) -> 0 | H35: =G35*F35 -> 0 | I35: =F35 -> 0.113 | J35: =IF(AND(E4*12>=150000),E4*E7,E4) -> 0 | K35: =J35*I35 -> 0 | L35: 0
A36: 0
A37: 0 | H37: =SUM(H26:H33,H25) -> 0 | K37: =SUM(K26:K33,K25) -> 0.25 | L37: =K37-H37 -> 0.25 | M37: =IF((H37)=0,"",(L37/H37)) -> 
A38: 0 | F38: 0.13 | H38: =H37*F38 -> 0 | I38: 0.13 | K38: =K37*I38 -> 0.0325 | L38: =K38-H38 -> 0.0325 | M38: =IF((H38)=0,"",(L38/H38)) -> 
A39: 0 | H39: =SUM(H37,H38) -> 0 | K39: =K37+K38 -> 0.2825 | L39: =K39-H39 -> 0.2825 | M39: =IF((H39)=0,"",(L39/H39)) -> 
A40: 0
A41: 0 | H41: =SUM(H34,H26:H30,H25) -> 0 | K41: =SUM(K34,K26:K30,K25) -> 0.25 | L41: =K41-H41 -> 0.25 | M41: =IF((H41)=0,"",(L41/H41)) -> 
A42: 0 | F42: 0.13 | H42: =H41*F42 -> 0 | I42: 0.13 | K42: =K41*I42 -> 0.0325 | L42: =K42-H42 -> 0.0325 | M42: =IF((H42)=0,"",(L42/H42)) -> 
A43: 0 | H43: =SUM(H41,H42) -> 0 | K43: =SUM(K41,K42) -> 0.2825 | L43: =K43-H43 -> 0.2825 | M43: =IF((H43)=0,"",(L43/H43)) -> 
A44: 0
A45: 0 | H45: =SUM(H35,H26:H30,H25) -> 0 | K45: =SUM(K35,K26:K30,K25) -> 0.25 | L45: =K45-H45 -> 0.25 | M45: =IF((H45)=0,"",(L45/H45)) -> 
A46: 0 | F46: 0.13 | H46: =H45*F46 -> 0 | I46: 0.13 | K46: =K45*I46 -> 0.0325 | L46: =K46-H46 -> 0.0325 | M46: =IF((H46)=0,"",(L46/H46)) -> 
A47: 0 | H47: =SUM(H45,H46) -> 0 | K47: =SUM(K45,K46) -> 0.2825 | L47: =K47-H47 -> 0.2825 | M47: =IF((H47)=0,"",(L47/H47)) -> 
A48: 0

Sheet 20. Bill Impacts hidden (hidden)

Sheet 2016 Database (hidden)

Sheet lists (hidden)

Sheet Sheet2 (hidden)

Sheet Sheet3 (hidden)
